Workbook

Sheet Jaugeage
A1: Date | B1: Météo | C1: Code | D1: peche | E1: pomme | F1: prune | G1: citron | H1: poire | I1: kiwi | J1: truc1 | K1: Vol 1 | L1: Temps 1 | M1: M3 /J 1 | N1: truc2 | O1: Vol 2 | P1: Temps 2 | Q1: M3 /J 2 | R1: truc3 | S1: Vol 3 | T1: Temps 3 | U1: M3 /J 3 | V1: truc4 | W1: Vol 4 | X1: Temps 4 | Y1: M3 /J 4 | Z1: Seuil alerte | AA1: Total général M3 /jrs | AB1: Mois | AC1: Année | AD1: Différence en M3/J entre 2 saisies | AE1: Observations | AF1: 5,3 Sec
A2: 2013-10-15 | C2: 856 | D2: =IF(ISNA(VLOOKUP(C2,BDDG!$C$2:$H$47,2,FALSE)),"",VLOOKUP(C2,BDDG!$C$2:$H$47,2,FALSE)) -> 0 | E2: =IF(ISNA(VLOOKUP(C2,BDDG!$C$3:$P$49,3,FALSE)),"",VLOOKUP(C2,BDDG!$C$3:$P$49,3,FALSE)) -> pates | F2: =IF(ISNA(VLOOKUP(C2,BDDG!$C$3:$P$49,4,FALSE)),"",VLOOKUP(C2,BDDG!$C$3:$P$49,4,FALSE)) -> 106 | G2: =IF(ISNA(VLOOKUP(C2,BDDG!$C$2:$H$47,5,FALSE)),"",VLOOKUP(C2,BDDG!$C$2:$H$47,5,FALSE)) -> noisettes | H2: =IF(ISNA(VLOOKUP(C2,BDDG!$C$2:$H$47,6,FALSE)),"",VLOOKUP(C2,BDDG!$C$2:$H$47,6,FALSE)) -> iris | I2: =IF(ISERROR(VLOOKUP(C2,BDDG!$C$2:$I$47,7,FALSE)),"",VLOOKUP(C2,BDDG!$C$2:$I$47,7,FALSE)) -> 2 | J2: =IF(ISERROR(VLOOKUP(C2,BDDG!$C$2:$W$6,8,FALSE)),"",VLOOKUP(C2,BDDG!$C$2:$W$6,8,FALSE)) -> iris1 | K2: 10 | L2: 57.5 | M2: =IF(ISERROR(K2/L2*86.4),"xxxxxxxxxx",K2/L2*86.4) -> 15.02608696 | N2: =IF(ISERROR(VLOOKUP(C2,BDDG!$C$2:$W$6,11,FALSE)),"",VLOOKUP(C2,BDDG!$C$2:$W$6,11,FALSE)) -> iris2 | O2: 10 | P2: 7.5 | Q2: =IF(ISERROR(O2/P2*86.4),"xxxxxxxxxx",O2/P2*86.4) -> 115.2 | R2: =IF(ISERROR(VLOOKUP(C2,BDDG!$C$2:$W$6,14,FALSE)),"",VLOOKUP(C2,BDDG!$C$2:$W$6,14,FALSE)) -> xxxxxxxxxxxxxxxxxxxxxxxxxxxxxxxxxxxx | S2: xxxxxxxxxx | T2: =IF(ISERROR(R2/S2*86.4),"xxxxxxxxxx",R2/S2*86.4) -> xxxxxxxxxx | U2: =IF(ISERROR(S2/T2*86.4),"xxxxxxxxxx",S2/T2*86.4) -> xxxxxxxxxx | V2: =IF(ISERROR(VLOOKUP(C2,BDDG!$C$2:$W$6,17,FALSE)),"",VLOOKUP(C2,BDDG!$C$2:$W$6,17,FALSE)) -> xxxxxxxxxxxxxxxxxxxxxxxx | W2: xxxxxxxxxx | X2: =IF(ISERROR(V2/W2*86.4),"xxxxxxxxxx",V2/W2*86.4) -> xxxxxxxxxx | Y2: =IF(ISERROR(W2/X2*86.4),"xxxxxxxxxx",W2/X2*86.4) -> xxxxxxxxxx | Z2: =IF(ISERROR(VLOOKUP(C2,BDDG!$C$2:$W$6,20,FALSE)),"",VLOOKUP(C2,BDDG!$C$2:$W$6,20,FALSE)) -> xxxxxxxxxx | AA2: =IF(ISERROR(SUM(M2,Q2,U2)),"",SUM(M2,Q2,U2)) -> 130.226087 | AB2: =MONTH(A:A) -> 10 | AC2: =YEAR(A:A) -> 2013 | AD2: =IFERROR((INDEX($AA$2:AA2,MATCH(H2&MAX(IF($H$1:H1=H2,$A$1:A1)),$H$2:H2&$A$2:A2,0))-AA2)*-1,"") ->  | AE2: =IF(ISERROR(VLOOKUP(C2,BDDG!$C$2:$W$6,21,FALSE)),"",VLOOKUP(C2,BDDG!$C$2:$W$6,21,FALSE)) -> 0
A3: 2013-12-20 | C3: 823 | D3: =IF(ISNA(VLOOKUP(C3,BDDG!$C$2:$H$47,2,FALSE)),"",VLOOKUP(C3,BDDG!$C$2:$H$47,2,FALSE)) -> 0 | E3: =IF(ISNA(VLOOKUP(C3,BDDG!$C$3:$P$49,3,FALSE)),"",VLOOKUP(C3,BDDG!$C$3:$P$49,3,FALSE)) -> frites | F3: =IF(ISNA(VLOOKUP(C3,BDDG!$C$3:$P$49,4,FALSE)),"",VLOOKUP(C3,BDDG!$C$3:$P$49,4,FALSE)) -> 104 | G3: =IF(ISNA(VLOOKUP(C3,BDDG!$C$2:$H$47,5,FALSE)),"",VLOOKUP(C3,BDDG!$C$2:$H$47,5,FALSE)) -> noix | H3: =IF(ISNA(VLOOKUP(C3,BDDG!$C$2:$H$47,6,FALSE)),"",VLOOKUP(C3,BDDG!$C$2:$H$47,6,FALSE)) -> rose | I3: =IF(ISERROR(VLOOKUP(C3,BDDG!$C$2:$I$47,7,FALSE)),"",VLOOKUP(C3,BDDG!$C$2:$I$47,7,FALSE)) -> 1 | J3: =IF(ISERROR(VLOOKUP(C3,BDDG!$C$2:$W$6,8,FALSE)),"",VLOOKUP(C3,BDDG!$C$2:$W$6,8,FALSE)) -> rose1 | K3: 2 | L3: 13 | M3: =IF(ISERROR(K3/L3*86.4),"xxxxxxxxxx",K3/L3*86.4) -> 13.29230769 | N3: =IF(ISERROR(VLOOKUP(C3,BDDG!$C$2:$W$6,11,FALSE)),"",VLOOKUP(C3,BDDG!$C$2:$W$6,11,FALSE)) -> xxxxxxxxxxxxxxxxxxxxxxxxxxxxxxxxxxxxxxxxxxxxxxx | O3: xxxxxxxxxx | P3: =IF(ISERROR(N3/O3*86.4),"xxxxxxxxxx",N3/O3*86.4) -> xxxxxxxxxx | Q3: =IF(ISERROR(O3/P3*86.4),"xxxxxxxxxx",O3/P3*86.4) -> xxxxxxxxxx | R3: =IF(ISERROR(VLOOKUP(C3,BDDG!$C$2:$W$6,14,FALSE)),"",VLOOKUP(C3,BDDG!$C$2:$W$6,14,FALSE)) -> xxxxxxxxxxxxxxxxxxxxxxxxxxxxxxxxxxxx | S3: xxxxxxxxxx | T3: =IF(ISERROR(R3/S3*86.4),"xxxxxxxxxx",R3/S3*86.4) -> xxxxxxxxxx | U3: =IF(ISERROR(S3/T3*86.4),"xxxxxxxxxx",S3/T3*86.4) -> xxxxxxxxxx | V3: =IF(ISERROR(VLOOKUP(C3,BDDG!$C$2:$W$6,17,FALSE)),"",VLOOKUP(C3,BDDG!$C$2:$W$6,17,FALSE)) -> xxxxxxxxxxxxxxxxxxxxxxxx | W3: xxxxxxxxxx | X3: =IF(ISERROR(V3/W3*86.4),"xxxxxxxxxx",V3/W3*86.4) -> xxxxxxxxxx | Y3: =IF(ISERROR(W3/X3*86.4),"xxxxxxxxxx",W3/X3*86.4) -> xxxxxxxxxx | Z3: =IF(ISERROR(VLOOKUP(C3,BDDG!$C$2:$W$6,20,FALSE)),"",VLOOKUP(C3,BDDG!$C$2:$W$6,20,FALSE)) -> 3 | AA3: =IF(ISERROR(SUM(M3,Q3,U3)),"",SUM(M3,Q3,U3)) -> 13.29230769 | AB3: =MONTH(A:A) -> 12 | AC3: =YEAR(A:A) -> 2013 | AD3: =IFERROR((INDEX($AA$2:AA3,MATCH(H3&MAX(IF($H$1:H2=H3,$A$1:A2)),$H$2:H3&$A$2:A3,0))-AA3)*-1,"") ->  | AE3: =IF(ISERROR(VLOOKUP(C3,BDDG!$C$2:$W$6,21,FALSE)),"",VLOOKUP(C3,BDDG!$C$2:$W$6,21,FALSE)) -> 0
A4: 2014-03-12 | C4: 823 | D4: =IF(ISNA(VLOOKUP(C4,BDDG!$C$2:$H$47,2,FALSE)),"",VLOOKUP(C4,BDDG!$C$2:$H$47,2,FALSE)) -> 0 | E4: =IF(ISNA(VLOOKUP(C4,BDDG!$C$3:$P$49,3,FALSE)),"",VLOOKUP(C4,BDDG!$C$3:$P$49,3,FALSE)) -> frites | F4: =IF(ISNA(VLOOKUP(C4,BDDG!$C$3:$P$49,4,FALSE)),"",VLOOKUP(C4,BDDG!$C$3:$P$49,4,FALSE)) -> 104 | G4: =IF(ISNA(VLOOKUP(C4,BDDG!$C$2:$H$47,5,FALSE)),"",VLOOKUP(C4,BDDG!$C$2:$H$47,5,FALSE)) -> noix | H4: =IF(ISNA(VLOOKUP(C4,BDDG!$C$2:$H$47,6,FALSE)),"",VLOOKUP(C4,BDDG!$C$2:$H$47,6,FALSE)) -> rose | I4: =IF(ISERROR(VLOOKUP(C4,BDDG!$C$2:$I$47,7,FALSE)),"",VLOOKUP(C4,BDDG!$C$2:$I$47,7,FALSE)) -> 1 | J4: =IF(ISERROR(VLOOKUP(C4,BDDG!$C$2:$W$6,8,FALSE)),"",VLOOKUP(C4,BDDG!$C$2:$W$6,8,FALSE)) -> rose1 | K4: 10 | L4: 11 | M4: =IF(ISERROR(K4/L4*86.4),"xxxxxxxxxx",K4/L4*86.4) -> 78.54545455 | N4: =IF(ISERROR(VLOOKUP(C4,BDDG!$C$2:$W$6,11,FALSE)),"",VLOOKUP(C4,BDDG!$C$2:$W$6,11,FALSE)) -> xxxxxxxxxxxxxxxxxxxxxxxxxxxxxxxxxxxxxxxxxxxxxxx | O4: xxxxxxxxxx | P4: =IF(ISERROR(N4/O4*86.4),"xxxxxxxxxx",N4/O4*86.4) -> xxxxxxxxxx | Q4: =IF(ISERROR(O4/P4*86.4),"xxxxxxxxxx",O4/P4*86.4) -> xxxxxxxxxx | R4: =IF(ISERROR(VLOOKUP(C4,BDDG!$C$2:$W$6,14,FALSE)),"",VLOOKUP(C4,BDDG!$C$2:$W$6,14,FALSE)) -> xxxxxxxxxxxxxxxxxxxxxxxxxxxxxxxxxxxx | S4: xxxxxxxxxx | T4: =IF(ISERROR(R4/S4*86.4),"xxxxxxxxxx",R4/S4*86.4) -> xxxxxxxxxx | U4: =IF(ISERROR(S4/T4*86.4),"xxxxxxxxxx",S4/T4*86.4) -> xxxxxxxxxx | V4: =IF(ISERROR(VLOOKUP(C4,BDDG!$C$2:$W$6,17,FALSE)),"",VLOOKUP(C4,BDDG!$C$2:$W$6,17,FALSE)) -> xxxxxxxxxxxxxxxxxxxxxxxx | W4: xxxxxxxxxx | X4: =IF(ISERROR(V4/W4*86.4),"xxxxxxxxxx",V4/W4*86.4) -> xxxxxxxxxx | Y4: =IF(ISERROR(W4/X4*86.4),"xxxxxxxxxx",W4/X4*86.4) -> xxxxxxxxxx | Z4: =IF(ISERROR(VLOOKUP(C4,BDDG!$C$2:$W$6,20,FALSE)),"",VLOOKUP(C4,BDDG!$C$2:$W$6,20,FALSE)) -> 3 | AA4: =IF(ISERROR(SUM(M4,Q4,U4)),"",SUM(M4,Q4,U4)) -> 78.54545455 | AB4: =MONTH(A:A) -> 3 | AC4: =YEAR(A:A) -> 2014 | AD4: =IFERROR((INDEX($AA$2:AA4,MATCH(H4&MAX(IF($H$1:H3=H4,$A$1:A3)),$H$2:H4&$A$2:A4,0))-AA4)*-1,"") -> 65.25314685 | AE4: =IF(ISERROR(VLOOKUP(C4,BDDG!$C$2:$W$6,21,FALSE)),"",VLOOKUP(C4,BDDG!$C$2:$W$6,21,FALSE)) -> 0
A5: 2014-04-10 | C5: 856 | D5: =IF(ISNA(VLOOKUP(C5,BDDG!$C$2:$H$47,2,FALSE)),"",VLOOKUP(C5,BDDG!$C$2:$H$47,2,FALSE)) -> 0 | E5: =IF(ISNA(VLOOKUP(C5,BDDG!$C$3:$P$49,3,FALSE)),"",VLOOKUP(C5,BDDG!$C$3:$P$49,3,FALSE)) -> pates | F5: =IF(ISNA(VLOOKUP(C5,BDDG!$C$3:$P$49,4,FALSE)),"",VLOOKUP(C5,BDDG!$C$3:$P$49,4,FALSE)) -> 106 | G5: =IF(ISNA(VLOOKUP(C5,BDDG!$C$2:$H$47,5,FALSE)),"",VLOOKUP(C5,BDDG!$C$2:$H$47,5,FALSE)) -> noisettes | H5: =IF(ISNA(VLOOKUP(C5,BDDG!$C$2:$H$47,6,FALSE)),"",VLOOKUP(C5,BDDG!$C$2:$H$47,6,FALSE)) -> iris | I5: =IF(ISERROR(VLOOKUP(C5,BDDG!$C$2:$I$47,7,FALSE)),"",VLOOKUP(C5,BDDG!$C$2:$I$47,7,FALSE)) -> 2 | J5: =IF(ISERROR(VLOOKUP(C5,BDDG!$C$2:$W$6,8,FALSE)),"",VLOOKUP(C5,BDDG!$C$2:$W$6,8,FALSE)) -> iris1 | K5: 10 | L5: 28 | M5: =IF(ISERROR(K5/L5*86.4),"xxxxxxxxxx",K5/L5*86.4) -> 30.85714286 | N5: =IF(ISERROR(VLOOKUP(C5,BDDG!$C$2:$W$6,11,FALSE)),"",VLOOKUP(C5,BDDG!$C$2:$W$6,11,FALSE)) -> iris2 | O5: 10 | P5: 2 | Q5: =IF(ISERROR(O5/P5*86.4),"xxxxxxxxxx",O5/P5*86.4) -> 432 | R5: =IF(ISERROR(VLOOKUP(C5,BDDG!$C$2:$W$6,14,FALSE)),"",VLOOKUP(C5,BDDG!$C$2:$W$6,14,FALSE)) -> xxxxxxxxxxxxxxxxxxxxxxxxxxxxxxxxxxxx | S5: xxxxxxxxxx | T5: =IF(ISERROR(R5/S5*86.4),"xxxxxxxxxx",R5/S5*86.4) -> xxxxxxxxxx | U5: =IF(ISERROR(S5/T5*86.4),"xxxxxxxxxx",S5/T5*86.4) -> xxxxxxxxxx | V5: =IF(ISERROR(VLOOKUP(C5,BDDG!$C$2:$W$6,17,FALSE)),"",VLOOKUP(C5,BDDG!$C$2:$W$6,17,FALSE)) -> xxxxxxxxxxxxxxxxxxxxxxxx | W5: xxxxxxxxxx | X5: =IF(ISERROR(V5/W5*86.4),"xxxxxxxxxx",V5/W5*86.4) -> xxxxxxxxxx | Y5: =IF(ISERROR(W5/X5*86.4),"xxxxxxxxxx",W5/X5*86.4) -> xxxxxxxxxx | Z5: =IF(ISERROR(VLOOKUP(C5,BDDG!$C$2:$W$6,20,FALSE)),"",VLOOKUP(C5,BDDG!$C$2:$W$6,20,FALSE)) -> xxxxxxxxxx | AA5: =IF(ISERROR(SUM(M5,Q5,U5)),"",SUM(M5,Q5,U5)) -> 462.8571429 | AB5: =MONTH(A:A) -> 4 | AC5: =YEAR(A:A) -> 2014 | AD5: =IFERROR((INDEX($AA$2:AA5,MATCH(H5&MAX(IF($H$1:H4=H5,$A$1:A4)),$H$2:H5&$A$2:A5,0))-AA5)*-1,"") -> 332.6310559 | AE5: =IF(ISERROR(VLOOKUP(C5,BDDG!$C$2:$W$6,21,FALSE)),"",VLOOKUP(C5,BDDG!$C$2:$W$6,21,FALSE)) -> 0
A6: 2014-06-03 | C6: 823 | D6: =IF(ISNA(VLOOKUP(C6,BDDG!$C$2:$H$47,2,FALSE)),"",VLOOKUP(C6,BDDG!$C$2:$H$47,2,FALSE)) -> 0 | E6: =IF(ISNA(VLOOKUP(C6,BDDG!$C$3:$P$49,3,FALSE)),"",VLOOKUP(C6,BDDG!$C$3:$P$49,3,FALSE)) -> frites | F6: =IF(ISNA(VLOOKUP(C6,BDDG!$C$3:$P$49,4,FALSE)),"",VLOOKUP(C6,BDDG!$C$3:$P$49,4,FALSE)) -> 104 | G6: =IF(ISNA(VLOOKUP(C6,BDDG!$C$2:$H$47,5,FALSE)),"",VLOOKUP(C6,BDDG!$C$2:$H$47,5,FALSE)) -> noix | H6: =IF(ISNA(VLOOKUP(C6,BDDG!$C$2:$H$47,6,FALSE)),"",VLOOKUP(C6,BDDG!$C$2:$H$47,6,FALSE)) -> rose | I6: =IF(ISERROR(VLOOKUP(C6,BDDG!$C$2:$I$47,7,FALSE)),"",VLOOKUP(C6,BDDG!$C$2:$I$47,7,FALSE)) -> 1 | J6: =IF(ISERROR(VLOOKUP(C6,BDDG!$C$2:$W$6,8,FALSE)),"",VLOOKUP(C6,BDDG!$C$2:$W$6,8,FALSE)) -> rose1 | K6: 10 | L6: 29 | M6: =IF(ISERROR(K6/L6*86.4),"xxxxxxxxxx",K6/L6*86.4) -> 29.79310345 | N6: =IF(ISERROR(VLOOKUP(C6,BDDG!$C$2:$W$6,11,FALSE)),"",VLOOKUP(C6,BDDG!$C$2:$W$6,11,FALSE)) -> xxxxxxxxxxxxxxxxxxxxxxxxxxxxxxxxxxxxxxxxxxxxxxx | O6: xxxxxxxxxx | P6: =IF(ISERROR(N6/O6*86.4),"xxxxxxxxxx",N6/O6*86.4) -> xxxxxxxxxx | Q6: =IF(ISERROR(O6/P6*86.4),"xxxxxxxxxx",O6/P6*86.4) -> xxxxxxxxxx | R6: =IF(ISERROR(VLOOKUP(C6,BDDG!$C$2:$W$6,14,FALSE)),"",VLOOKUP(C6,BDDG!$C$2:$W$6,14,FALSE)) -> xxxxxxxxxxxxxxxxxxxxxxxxxxxxxxxxxxxx | S6: xxxxxxxxxx | T6: =IF(ISERROR(R6/S6*86.4),"xxxxxxxxxx",R6/S6*86.4) -> xxxxxxxxxx | U6: =IF(ISERROR(S6/T6*86.4),"xxxxxxxxxx",S6/T6*86.4) -> xxxxxxxxxx | V6: =IF(ISERROR(VLOOKUP(C6,BDDG!$C$2:$W$6,17,FALSE)),"",VLOOKUP(C6,BDDG!$C$2:$W$6,17,FALSE)) -> xxxxxxxxxxxxxxxxxxxxxxxx | W6: xxxxxxxxxx | X6: =IF(ISERROR(V6/W6*86.4),"xxxxxxxxxx",V6/W6*86.4) -> xxxxxxxxxx | Y6: =IF(ISERROR(W6/X6*86.4),"xxxxxxxxxx",W6/X6*86.4) -> xxxxxxxxxx | Z6: =IF(ISERROR(VLOOKUP(C6,BDDG!$C$2:$W$6,20,FALSE)),"",VLOOKUP(C6,BDDG!$C$2:$W$6,20,FALSE)) -> 3 | AA6: =IF(ISERROR(SUM(M6,Q6,U6)),"",SUM(M6,Q6,U6)) -> 29.79310345 | AB6: =MONTH(A:A) -> 6 | AC6: =YEAR(A:A) -> 2014 | AD6: =IFERROR((INDEX($AA$2:AA6,MATCH(H6&MAX(IF($H$1:H5=H6,$A$1:A5)),$H$2:H6&$A$2:A6,0))-AA6)*-1,"") -> -48.7523511 | AE6: =IF(ISERROR(VLOOKUP(C6,BDDG!$C$2:$W$6,21,FALSE)),"",VLOOKUP(C6,BDDG!$C$2:$W$6,21,FALSE)) -> 0
A7: 2014-06-04 | C7: 856 | D7: =IF(ISNA(VLOOKUP(C7,BDDG!$C$2:$H$47,2,FALSE)),"",VLOOKUP(C7,BDDG!$C$2:$H$47,2,FALSE)) -> 0 | E7: =IF(ISNA(VLOOKUP(C7,BDDG!$C$3:$P$49,3,FALSE)),"",VLOOKUP(C7,BDDG!$C$3:$P$49,3,FALSE)) -> pates | F7: =IF(ISNA(VLOOKUP(C7,BDDG!$C$3:$P$49,4,FALSE)),"",VLOOKUP(C7,BDDG!$C$3:$P$49,4,FALSE)) -> 106 | G7: =IF(ISNA(VLOOKUP(C7,BDDG!$C$2:$H$47,5,FALSE)),"",VLOOKUP(C7,BDDG!$C$2:$H$47,5,FALSE)) -> noisettes | H7: =IF(ISNA(VLOOKUP(C7,BDDG!$C$2:$H$47,6,FALSE)),"",VLOOKUP(C7,BDDG!$C$2:$H$47,6,FALSE)) -> iris | I7: =IF(ISERROR(VLOOKUP(C7,BDDG!$C$2:$I$47,7,FALSE)),"",VLOOKUP(C7,BDDG!$C$2:$I$47,7,FALSE)) -> 2 | J7: =IF(ISERROR(VLOOKUP(C7,BDDG!$C$2:$W$6,8,FALSE)),"",VLOOKUP(C7,BDDG!$C$2:$W$6,8,FALSE)) -> iris1 | K7: 10 | L7: 55 | M7: =IF(ISERROR(K7/L7*86.4),"xxxxxxxxxx",K7/L7*86.4) -> 15.70909091 | N7: =IF(ISERROR(VLOOKUP(C7,BDDG!$C$2:$W$6,11,FALSE)),"",VLOOKUP(C7,BDDG!$C$2:$W$6,11,FALSE)) -> iris2 | O7: 10 | P7: 4.5 | Q7: =IF(ISERROR(O7/P7*86.4),"xxxxxxxxxx",O7/P7*86.4) -> 192 | R7: =IF(ISERROR(VLOOKUP(C7,BDDG!$C$2:$W$6,14,FALSE)),"",VLOOKUP(C7,BDDG!$C$2:$W$6,14,FALSE)) -> xxxxxxxxxxxxxxxxxxxxxxxxxxxxxxxxxxxx | S7: xxxxxxxxxx | T7: =IF(ISERROR(R7/S7*86.4),"xxxxxxxxxx",R7/S7*86.4) -> xxxxxxxxxx | U7: =IF(ISERROR(S7/T7*86.4),"xxxxxxxxxx",S7/T7*86.4) -> xxxxxxxxxx | V7: =IF(ISERROR(VLOOKUP(C7,BDDG!$C$2:$W$6,17,FALSE)),"",VLOOKUP(C7,BDDG!$C$2:$W$6,17,FALSE)) -> xxxxxxxxxxxxxxxxxxxxxxxx | W7: xxxxxxxxxx | X7: =IF(ISERROR(V7/W7*86.4),"xxxxxxxxxx",V7/W7*86.4) -> xxxxxxxxxx | Y7: =IF(ISERROR(W7/X7*86.4),"xxxxxxxxxx",W7/X7*86.4) -> xxxxxxxxxx | Z7: =IF(ISERROR(VLOOKUP(C7,BDDG!$C$2:$W$6,20,FALSE)),"",VLOOKUP(C7,BDDG!$C$2:$W$6,20,FALSE)) -> xxxxxxxxxx | AA7: =IF(ISERROR(SUM(M7,Q7,U7)),"",SUM(M7,Q7,U7)) -> 207.7090909 | AB7: =MONTH(A:A) -> 6 | AC7: =YEAR(A:A) -> 2014 | AD7: =IFERROR((INDEX($AA$2:AA7,MATCH(H7&MAX(IF($H$1:H6=H7,$A$1:A6)),$H$2:H7&$A$2:A7,0))-AA7)*-1,"") -> -255.1480519 | AE7: =IF(ISERROR(VLOOKUP(C7,BDDG!$C$2:$W$6,21,FALSE)),"",VLOOKUP(C7,BDDG!$C$2:$W$6,21,FALSE)) -> 0
A8: 2014-07-08 | C8: 823 | D8: =IF(ISNA(VLOOKUP(C8,BDDG!$C$2:$H$47,2,FALSE)),"",VLOOKUP(C8,BDDG!$C$2:$H$47,2,FALSE)) -> 0 | E8: =IF(ISNA(VLOOKUP(C8,BDDG!$C$3:$P$49,3,FALSE)),"",VLOOKUP(C8,BDDG!$C$3:$P$49,3,FALSE)) -> frites | F8: =IF(ISNA(VLOOKUP(C8,BDDG!$C$3:$P$49,4,FALSE)),"",VLOOKUP(C8,BDDG!$C$3:$P$49,4,FALSE)) -> 104 | G8: =IF(ISNA(VLOOKUP(C8,BDDG!$C$2:$H$47,5,FALSE)),"",VLOOKUP(C8,BDDG!$C$2:$H$47,5,FALSE)) -> noix | H8: =IF(ISNA(VLOOKUP(C8,BDDG!$C$2:$H$47,6,FALSE)),"",VLOOKUP(C8,BDDG!$C$2:$H$47,6,FALSE)) -> rose | I8: =IF(ISERROR(VLOOKUP(C8,BDDG!$C$2:$I$47,7,FALSE)),"",VLOOKUP(C8,BDDG!$C$2:$I$47,7,FALSE)) -> 1 | J8: =IF(ISERROR(VLOOKUP(C8,BDDG!$C$2:$W$6,8,FALSE)),"",VLOOKUP(C8,BDDG!$C$2:$W$6,8,FALSE)) -> rose1 | K8: 10 | L8: 18.7 | M8: =IF(ISERROR(K8/L8*86.4),"xxxxxxxxxx",K8/L8*86.4) -> 46.20320856 | N8: =IF(ISERROR(VLOOKUP(C8,BDDG!$C$2:$W$6,11,FALSE)),"",VLOOKUP(C8,BDDG!$C$2:$W$6,11,FALSE)) -> xxxxxxxxxxxxxxxxxxxxxxxxxxxxxxxxxxxxxxxxxxxxxxx | O8: xxxxxxxxxx | P8: =IF(ISERROR(N8/O8*86.4),"xxxxxxxxxx",N8/O8*86.4) -> xxxxxxxxxx | Q8: =IF(ISERROR(O8/P8*86.4),"xxxxxxxxxx",O8/P8*86.4) -> xxxxxxxxxx | R8: =IF(ISERROR(VLOOKUP(C8,BDDG!$C$2:$W$6,14,FALSE)),"",VLOOKUP(C8,BDDG!$C$2:$W$6,14,FALSE)) -> xxxxxxxxxxxxxxxxxxxxxxxxxxxxxxxxxxxx | S8: xxxxxxxxxx | T8: =IF(ISERROR(R8/S8*86.4),"xxxxxxxxxx",R8/S8*86.4) -> xxxxxxxxxx | U8: =IF(ISERROR(S8/T8*86.4),"xxxxxxxxxx",S8/T8*86.4) -> xxxxxxxxxx | V8: =IF(ISERROR(VLOOKUP(C8,BDDG!$C$2:$W$6,17,FALSE)),"",VLOOKUP(C8,BDDG!$C$2:$W$6,17,FALSE)) -> xxxxxxxxxxxxxxxxxxxxxxxx | W8: xxxxxxxxxx | X8: =IF(ISERROR(V8/W8*86.4),"xxxxxxxxxx",V8/W8*86.4) -> xxxxxxxxxx | Y8: =IF(ISERROR(W8/X8*86.4),"xxxxxxxxxx",W8/X8*86.4) -> xxxxxxxxxx | Z8: =IF(ISERROR(VLOOKUP(C8,BDDG!$C$2:$W$6,20,FALSE)),"",VLOOKUP(C8,BDDG!$C$2:$W$6,20,FALSE)) -> 3 | AA8: =IF(ISERROR(SUM(M8,Q8,U8)),"",SUM(M8,Q8,U8)) -> 46.20320856 | AB8: =MONTH(A:A) -> 7 | AC8: =YEAR(A:A) -> 2014 | AD8: =IFERROR((INDEX($AA$2:AA8,MATCH(H8&MAX(IF($H$1:H7=H8,$A$1:A7)),$H$2:H8&$A$2:A8,0))-AA8)*-1,"") -> 16.41010511 | AE8: =IF(ISERROR(VLOOKUP(C8,BDDG!$C$2:$W$6,21,FALSE)),"",VLOOKUP(C8,BDDG!$C$2:$W$6,21,FALSE)) -> 0
A9: 2014-11-12 | C9: 823 | D9: =IF(ISNA(VLOOKUP(C9,BDDG!$C$2:$H$47,2,FALSE)),"",VLOOKUP(C9,BDDG!$C$2:$H$47,2,FALSE)) -> 0 | E9: =IF(ISNA(VLOOKUP(C9,BDDG!$C$3:$P$49,3,FALSE)),"",VLOOKUP(C9,BDDG!$C$3:$P$49,3,FALSE)) -> frites | F9: =IF(ISNA(VLOOKUP(C9,BDDG!$C$3:$P$49,4,FALSE)),"",VLOOKUP(C9,BDDG!$C$3:$P$49,4,FALSE)) -> 104 | G9: =IF(ISNA(VLOOKUP(C9,BDDG!$C$2:$H$47,5,FALSE)),"",VLOOKUP(C9,BDDG!$C$2:$H$47,5,FALSE)) -> noix | H9: =IF(ISNA(VLOOKUP(C9,BDDG!$C$2:$H$47,6,FALSE)),"",VLOOKUP(C9,BDDG!$C$2:$H$47,6,FALSE)) -> rose | I9: =IF(ISERROR(VLOOKUP(C9,BDDG!$C$2:$I$47,7,FALSE)),"",VLOOKUP(C9,BDDG!$C$2:$I$47,7,FALSE)) -> 1 | J9: =IF(ISERROR(VLOOKUP(C9,BDDG!$C$2:$W$6,8,FALSE)),"",VLOOKUP(C9,BDDG!$C$2:$W$6,8,FALSE)) -> rose1 | K9: 10 | L9: 30 | M9: =IF(ISERROR(K9/L9*86.4),"xxxxxxxxxx",K9/L9*86.4) -> 28.8 | N9: =IF(ISERROR(VLOOKUP(C9,BDDG!$C$2:$W$6,11,FALSE)),"",VLOOKUP(C9,BDDG!$C$2:$W$6,11,FALSE)) -> xxxxxxxxxxxxxxxxxxxxxxxxxxxxxxxxxxxxxxxxxxxxxxx | O9: xxxxxxxxxx | P9: =IF(ISERROR(N9/O9*86.4),"xxxxxxxxxx",N9/O9*86.4) -> xxxxxxxxxx | Q9: =IF(ISERROR(O9/P9*86.4),"xxxxxxxxxx",O9/P9*86.4) -> xxxxxxxxxx | R9: =IF(ISERROR(VLOOKUP(C9,BDDG!$C$2:$W$6,14,FALSE)),"",VLOOKUP(C9,BDDG!$C$2:$W$6,14,FALSE)) -> xxxxxxxxxxxxxxxxxxxxxxxxxxxxxxxxxxxx | S9: xxxxxxxxxx | T9: =IF(ISERROR(R9/S9*86.4),"xxxxxxxxxx",R9/S9*86.4) -> xxxxxxxxxx | U9: =IF(ISERROR(S9/T9*86.4),"xxxxxxxxxx",S9/T9*86.4) -> xxxxxxxxxx | V9: =IF(ISERROR(VLOOKUP(C9,BDDG!$C$2:$W$6,17,FALSE)),"",VLOOKUP(C9,BDDG!$C$2:$W$6,17,FALSE)) -> xxxxxxxxxxxxxxxxxxxxxxxx | W9: xxxxxxxxxx | X9: =IF(ISERROR(V9/W9*86.4),"xxxxxxxxxx",V9/W9*86.4) -> xxxxxxxxxx | Y9: =IF(ISERROR(W9/X9*86.4),"xxxxxxxxxx",W9/X9*86.4) -> xxxxxxxxxx | Z9: =IF(ISERROR(VLOOKUP(C9,BDDG!$C$2:$W$6,20,FALSE)),"",VLOOKUP(C9,BDDG!$C$2:$W$6,20,FALSE)) -> 3 | AA9: =IF(ISERROR(SUM(M9,Q9,U9)),"",SUM(M9,Q9,U9)) -> 28.8 | AB9: =MONTH(A:A) -> 11 | AC9: =YEAR(A:A) -> 2014 | AD9: =IFERROR((INDEX($AA$2:AA9,MATCH(H9&MAX(IF($H$1:H8=H9,$A$1:A8)),$H$2:H9&$A$2:A9,0))-AA9)*-1,"") -> -17.40320856 | AE9: =IF(ISERROR(VLOOKUP(C9,BDDG!$C$2:$W$6,21,FALSE)),"",VLOOKUP(C9,BDDG!$C$2:$W$6,21,FALSE)) -> 0
A10: 2014-12-19 | C10: 823 | D10: =IF(ISNA(VLOOKUP(C10,BDDG!$C$2:$H$47,2,FALSE)),"",VLOOKUP(C10,BDDG!$C$2:$H$47,2,FALSE)) -> 0 | E10: =IF(ISNA(VLOOKUP(C10,BDDG!$C$3:$P$49,3,FALSE)),"",VLOOKUP(C10,BDDG!$C$3:$P$49,3,FALSE)) -> frites | F10: =IF(ISNA(VLOOKUP(C10,BDDG!$C$3:$P$49,4,FALSE)),"",VLOOKUP(C10,BDDG!$C$3:$P$49,4,FALSE)) -> 104 | G10: =IF(ISNA(VLOOKUP(C10,BDDG!$C$2:$H$47,5,FALSE)),"",VLOOKUP(C10,BDDG!$C$2:$H$47,5,FALSE)) -> noix | H10: =IF(ISNA(VLOOKUP(C10,BDDG!$C$2:$H$47,6,FALSE)),"",VLOOKUP(C10,BDDG!$C$2:$H$47,6,FALSE)) -> rose | I10: =IF(ISERROR(VLOOKUP(C10,BDDG!$C$2:$I$47,7,FALSE)),"",VLOOKUP(C10,BDDG!$C$2:$I$47,7,FALSE)) -> 1 | J10: =IF(ISERROR(VLOOKUP(C10,BDDG!$C$2:$W$6,8,FALSE)),"",VLOOKUP(C10,BDDG!$C$2:$W$6,8,FALSE)) -> rose1 | K10: 10 | L10: 7 | M10: =IF(ISERROR(K10/L10*86.4),"xxxxxxxxxx",K10/L10*86.4) -> 123.4285714 | N10: =IF(ISERROR(VLOOKUP(C10,BDDG!$C$2:$W$6,11,FALSE)),"",VLOOKUP(C10,BDDG!$C$2:$W$6,11,FALSE)) -> xxxxxxxxxxxxxxxxxxxxxxxxxxxxxxxxxxxxxxxxxxxxxxx | O10: xxxxxxxxxx | P10: =IF(ISERROR(N10/O10*86.4),"xxxxxxxxxx",N10/O10*86.4) -> xxxxxxxxxx | Q10: =IF(ISERROR(O10/P10*86.4),"xxxxxxxxxx",O10/P10*86.4) -> xxxxxxxxxx | R10: =IF(ISERROR(VLOOKUP(C10,BDDG!$C$2:$W$6,14,FALSE)),"",VLOOKUP(C10,BDDG!$C$2:$W$6,14,FALSE)) -> xxxxxxxxxxxxxxxxxxxxxxxxxxxxxxxxxxxx | S10: xxxxxxxxxx | T10: =IF(ISERROR(R10/S10*86.4),"xxxxxxxxxx",R10/S10*86.4) -> xxxxxxxxxx | U10: =IF(ISERROR(S10/T10*86.4),"xxxxxxxxxx",S10/T10*86.4) -> xxxxxxxxxx | V10: =IF(ISERROR(VLOOKUP(C10,BDDG!$C$2:$W$6,17,FALSE)),"",VLOOKUP(C10,BDDG!$C$2:$W$6,17,FALSE)) -> xxxxxxxxxxxxxxxxxxxxxxxx | W10: xxxxxxxxxx | X10: =IF(ISERROR(V10/W10*86.4),"xxxxxxxxxx",V10/W10*86.4) -> xxxxxxxxxx | Y10: =IF(ISERROR(W10/X10*86.4),"xxxxxxxxxx",W10/X10*86.4) -> xxxxxxxxxx | Z10: =IF(ISERROR(VLOOKUP(C10,BDDG!$C$2:$W$6,20,FALSE)),"",VLOOKUP(C10,BDDG!$C$2:$W$6,20,FALSE)) -> 3 | AA10: =IF(ISERROR(SUM(M10,Q10,U10)),"",SUM(M10,Q10,U10)) -> 123.4285714 | AB10: =MONTH(A:A) -> 12 | AC10: =YEAR(A:A) -> 2014 | AD10: =IFERROR((INDEX($AA$2:AA10,MATCH(H10&MAX(IF($H$1:H9=H10,$A$1:A9)),$H$2:H10&$A$2:A10,0))-AA10)*-1,"") -> 94.62857143 | AE10: =IF(ISERROR(VLOOKUP(C10,BDDG!$C$2:$W$6,21,FALSE)),"",VLOOKUP(C10,BDDG!$C$2:$W$6,21,FALSE)) -> 0
A11: 2015-04-03 | C11: 823 | D11: =IF(ISNA(VLOOKUP(C11,BDDG!$C$2:$H$47,2,FALSE)),"",VLOOKUP(C11,BDDG!$C$2:$H$47,2,FALSE)) -> 0 | E11: =IF(ISNA(VLOOKUP(C11,BDDG!$C$3:$P$49,3,FALSE)),"",VLOOKUP(C11,BDDG!$C$3:$P$49,3,FALSE)) -> frites | F11: =IF(ISNA(VLOOKUP(C11,BDDG!$C$3:$P$49,4,FALSE)),"",VLOOKUP(C11,BDDG!$C$3:$P$49,4,FALSE)) -> 104 | G11: =IF(ISNA(VLOOKUP(C11,BDDG!$C$2:$H$47,5,FALSE)),"",VLOOKUP(C11,BDDG!$C$2:$H$47,5,FALSE)) -> noix | H11: =IF(ISNA(VLOOKUP(C11,BDDG!$C$2:$H$47,6,FALSE)),"",VLOOKUP(C11,BDDG!$C$2:$H$47,6,FALSE)) -> rose | I11: =IF(ISERROR(VLOOKUP(C11,BDDG!$C$2:$I$47,7,FALSE)),"",VLOOKUP(C11,BDDG!$C$2:$I$47,7,FALSE)) -> 1 | J11: =IF(ISERROR(VLOOKUP(C11,BDDG!$C$2:$W$6,8,FALSE)),"",VLOOKUP(C11,BDDG!$C$2:$W$6,8,FALSE)) -> rose1 | K11: 10 | L11: 15 | M11: =IF(ISERROR(K11/L11*86.4),"xxxxxxxxxx",K11/L11*86.4) -> 57.6 | N11: =IF(ISERROR(VLOOKUP(C11,BDDG!$C$2:$W$6,11,FALSE)),"",VLOOKUP(C11,BDDG!$C$2:$W$6,11,FALSE)) -> xxxxxxxxxxxxxxxxxxxxxxxxxxxxxxxxxxxxxxxxxxxxxxx | O11: xxxxxxxxxx | P11: =IF(ISERROR(N11/O11*86.4),"xxxxxxxxxx",N11/O11*86.4) -> xxxxxxxxxx | Q11: =IF(ISERROR(O11/P11*86.4),"xxxxxxxxxx",O11/P11*86.4) -> xxxxxxxxxx | R11: =IF(ISERROR(VLOOKUP(C11,BDDG!$C$2:$W$6,14,FALSE)),"",VLOOKUP(C11,BDDG!$C$2:$W$6,14,FALSE)) -> xxxxxxxxxxxxxxxxxxxxxxxxxxxxxxxxxxxx | S11: xxxxxxxxxx | T11: =IF(ISERROR(R11/S11*86.4),"xxxxxxxxxx",R11/S11*86.4) -> xxxxxxxxxx | U11: =IF(ISERROR(S11/T11*86.4),"xxxxxxxxxx",S11/T11*86.4) -> xxxxxxxxxx | V11: =IF(ISERROR(VLOOKUP(C11,BDDG!$C$2:$W$6,17,FALSE)),"",VLOOKUP(C11,BDDG!$C$2:$W$6,17,FALSE)) -> xxxxxxxxxxxxxxxxxxxxxxxx | W11: xxxxxxxxxx | X11: =IF(ISERROR(V11/W11*86.4),"xxxxxxxxxx",V11/W11*86.4) -> xxxxxxxxxx | Y11: =IF(ISERROR(W11/X11*86.4),"xxxxxxxxxx",W11/X11*86.4) -> xxxxxxxxxx | Z11: =IF(ISERROR(VLOOKUP(C11,BDDG!$C$2:$W$6,20,FALSE)),"",VLOOKUP(C11,BDDG!$C$2:$W$6,20,FALSE)) -> 3 | AA11: =IF(ISERROR(SUM(M11,Q11,U11)),"",SUM(M11,Q11,U11)) -> 57.6 | AB11: =MONTH(A:A) -> 4 | AC11: =YEAR(A:A) -> 2015 | AD11: =IFERROR((INDEX($AA$2:AA11,MATCH(H11&MAX(IF($H$1:H10=H11,$A$1:A10)),$H$2:H11&$A$2:A11,0))-AA11)*-1,"") -> -65.82857143 | AE11: =IF(ISERROR(VLOOKUP(C11,BDDG!$C$2:$W$6,21,FALSE)),"",VLOOKUP(C11,BDDG!$C$2:$W$6,21,FALSE)) -> 0
A12: 2015-04-07 | C12: 856 | D12: =IF(ISNA(VLOOKUP(C12,BDDG!$C$2:$H$47,2,FALSE)),"",VLOOKUP(C12,BDDG!$C$2:$H$47,2,FALSE)) -> 0 | E12: =IF(ISNA(VLOOKUP(C12,BDDG!$C$3:$P$49,3,FALSE)),"",VLOOKUP(C12,BDDG!$C$3:$P$49,3,FALSE)) -> pates | F12: =IF(ISNA(VLOOKUP(C12,BDDG!$C$3:$P$49,4,FALSE)),"",VLOOKUP(C12,BDDG!$C$3:$P$49,4,FALSE)) -> 106 | G12: =IF(ISNA(VLOOKUP(C12,BDDG!$C$2:$H$47,5,FALSE)),"",VLOOKUP(C12,BDDG!$C$2:$H$47,5,FALSE)) -> noisettes | H12: =IF(ISNA(VLOOKUP(C12,BDDG!$C$2:$H$47,6,FALSE)),"",VLOOKUP(C12,BDDG!$C$2:$H$47,6,FALSE)) -> iris | I12: =IF(ISERROR(VLOOKUP(C12,BDDG!$C$2:$I$47,7,FALSE)),"",VLOOKUP(C12,BDDG!$C$2:$I$47,7,FALSE)) -> 2 | J12: =IF(ISERROR(VLOOKUP(C12,BDDG!$C$2:$W$6,8,FALSE)),"",VLOOKUP(C12,BDDG!$C$2:$W$6,8,FALSE)) -> iris1 | K12: 10 | L12: 15 | M12: =IF(ISERROR(K12/L12*86.4),"xxxxxxxxxx",K12/L12*86.4) -> 57.6 | N12: =IF(ISERROR(VLOOKUP(C12,BDDG!$C$2:$W$6,11,FALSE)),"",VLOOKUP(C12,BDDG!$C$2:$W$6,11,FALSE)) -> iris2 | O12: 10 | P12: 1 | Q12: =IF(ISERROR(O12/P12*86.4),"xxxxxxxxxx",O12/P12*86.4) -> 864 | R12: =IF(ISERROR(VLOOKUP(C12,BDDG!$C$2:$W$6,14,FALSE)),"",VLOOKUP(C12,BDDG!$C$2:$W$6,14,FALSE)) -> xxxxxxxxxxxxxxxxxxxxxxxxxxxxxxxxxxxx | S12: xxxxxxxxxx | T12: =IF(ISERROR(R12/S12*86.4),"xxxxxxxxxx",R12/S12*86.4) -> xxxxxxxxxx | U12: =IF(ISERROR(S12/T12*86.4),"xxxxxxxxxx",S12/T12*86.4) -> xxxxxxxxxx | V12: =IF(ISERROR(VLOOKUP(C12,BDDG!$C$2:$W$6,17,FALSE)),"",VLOOKUP(C12,BDDG!$C$2:$W$6,17,FALSE)) -> xxxxxxxxxxxxxxxxxxxxxxxx | W12: xxxxxxxxxx | X12: =IF(ISERROR(V12/W12*86.4),"xxxxxxxxxx",V12/W12*86.4) -> xxxxxxxxxx | Y12: =IF(ISERROR(W12/X12*86.4),"xxxxxxxxxx",W12/X12*86.4) -> xxxxxxxxxx | Z12: =IF(ISERROR(VLOOKUP(C12,BDDG!$C$2:$W$6,20,FALSE)),"",VLOOKUP(C12,BDDG!$C$2:$W$6,20,FALSE)) -> xxxxxxxxxx | AA12: =IF(ISERROR(SUM(M12,Q12,U12)),"",SUM(M12,Q12,U12)) -> 921.6 | AB12: =MONTH(A:A) -> 4 | AC12: =YEAR(A:A) -> 2015 | AD12: =IFERROR((INDEX($AA$2:AA12,MATCH(H12&MAX(IF($H$1:H11=H12,$A$1:A11)),$H$2:H12&$A$2:A12,0))-AA12)*-1,"") -> 713.8909091 | AE12: =IF(ISERROR(VLOOKUP(C12,BDDG!$C$2:$W$6,21,FALSE)),"",VLOOKUP(C12,BDDG!$C$2:$W$6,21,FALSE)) -> 0
A13: 2015-05-26 | C13: 823 | D13: =IF(ISNA(VLOOKUP(C13,BDDG!$C$2:$H$47,2,FALSE)),"",VLOOKUP(C13,BDDG!$C$2:$H$47,2,FALSE)) -> 0 | E13: =IF(ISNA(VLOOKUP(C13,BDDG!$C$3:$P$49,3,FALSE)),"",VLOOKUP(C13,BDDG!$C$3:$P$49,3,FALSE)) -> frites | F13: =IF(ISNA(VLOOKUP(C13,BDDG!$C$3:$P$49,4,FALSE)),"",VLOOKUP(C13,BDDG!$C$3:$P$49,4,FALSE)) -> 104 | G13: =IF(ISNA(VLOOKUP(C13,BDDG!$C$2:$H$47,5,FALSE)),"",VLOOKUP(C13,BDDG!$C$2:$H$47,5,FALSE)) -> noix | H13: =IF(ISNA(VLOOKUP(C13,BDDG!$C$2:$H$47,6,FALSE)),"",VLOOKUP(C13,BDDG!$C$2:$H$47,6,FALSE)) -> rose | I13: =IF(ISERROR(VLOOKUP(C13,BDDG!$C$2:$I$47,7,FALSE)),"",VLOOKUP(C13,BDDG!$C$2:$I$47,7,FALSE)) -> 1 | J13: =IF(ISERROR(VLOOKUP(C13,BDDG!$C$2:$W$6,8,FALSE)),"",VLOOKUP(C13,BDDG!$C$2:$W$6,8,FALSE)) -> rose1 | K13: 10 | L13: 22 | M13: =IF(ISERROR(K13/L13*86.4),"xxxxxxxxxx",K13/L13*86.4) -> 39.27272727 | N13: =IF(ISERROR(VLOOKUP(C13,BDDG!$C$2:$W$6,11,FALSE)),"",VLOOKUP(C13,BDDG!$C$2:$W$6,11,FALSE)) -> xxxxxxxxxxxxxxxxxxxxxxxxxxxxxxxxxxxxxxxxxxxxxxx | O13: xxxxxxxxxx | P13: =IF(ISERROR(N13/O13*86.4),"xxxxxxxxxx",N13/O13*86.4) -> xxxxxxxxxx | Q13: =IF(ISERROR(O13/P13*86.4),"xxxxxxxxxx",O13/P13*86.4) -> xxxxxxxxxx | R13: =IF(ISERROR(VLOOKUP(C13,BDDG!$C$2:$W$6,14,FALSE)),"",VLOOKUP(C13,BDDG!$C$2:$W$6,14,FALSE)) -> xxxxxxxxxxxxxxxxxxxxxxxxxxxxxxxxxxxx | S13: xxxxxxxxxx | T13: =IF(ISERROR(R13/S13*86.4),"xxxxxxxxxx",R13/S13*86.4) -> xxxxxxxxxx | U13: =IF(ISERROR(S13/T13*86.4),"xxxxxxxxxx",S13/T13*86.4) -> xxxxxxxxxx | V13: =IF(ISERROR(VLOOKUP(C13,BDDG!$C$2:$W$6,17,FALSE)),"",VLOOKUP(C13,BDDG!$C$2:$W$6,17,FALSE)) -> xxxxxxxxxxxxxxxxxxxxxxxx | W13: xxxxxxxxxx | X13: =IF(ISERROR(V13/W13*86.4),"xxxxxxxxxx",V13/W13*86.4) -> xxxxxxxxxx | Y13: =IF(ISERROR(W13/X13*86.4),"xxxxxxxxxx",W13/X13*86.4) -> xxxxxxxxxx | Z13: =IF(ISERROR(VLOOKUP(C13,BDDG!$C$2:$W$6,20,FALSE)),"",VLOOKUP(C13,BDDG!$C$2:$W$6,20,FALSE)) -> 3 | AA13: =IF(ISERROR(SUM(M13,Q13,U13)),"",SUM(M13,Q13,U13)) -> 39.27272727 | AB13: =MONTH(A:A) -> 5 | AC13: =YEAR(A:A) -> 2015 | AD13: =IFERROR((INDEX($AA$2:AA13,MATCH(H13&MAX(IF($H$1:H12=H13,$A$1:A12)),$H$2:H13&$A$2:A13,0))-AA13)*-1,"") -> -18.32727273 | AE13: =IF(ISERROR(VLOOKUP(C13,BDDG!$C$2:$W$6,21,FALSE)),"",VLOOKUP(C13,BDDG!$C$2:$W$6,21,FALSE)) -> 0
A14: 2015-06-12 | C14: 856 | D14: =IF(ISNA(VLOOKUP(C14,BDDG!$C$2:$H$47,2,FALSE)),"",VLOOKUP(C14,BDDG!$C$2:$H$47,2,FALSE)) -> 0 | E14: =IF(ISNA(VLOOKUP(C14,BDDG!$C$3:$P$49,3,FALSE)),"",VLOOKUP(C14,BDDG!$C$3:$P$49,3,FALSE)) -> pates | F14: =IF(ISNA(VLOOKUP(C14,BDDG!$C$3:$P$49,4,FALSE)),"",VLOOKUP(C14,BDDG!$C$3:$P$49,4,FALSE)) -> 106 | G14: =IF(ISNA(VLOOKUP(C14,BDDG!$C$2:$H$47,5,FALSE)),"",VLOOKUP(C14,BDDG!$C$2:$H$47,5,FALSE)) -> noisettes | H14: =IF(ISNA(VLOOKUP(C14,BDDG!$C$2:$H$47,6,FALSE)),"",VLOOKUP(C14,BDDG!$C$2:$H$47,6,FALSE)) -> iris | I14: =IF(ISERROR(VLOOKUP(C14,BDDG!$C$2:$I$47,7,FALSE)),"",VLOOKUP(C14,BDDG!$C$2:$I$47,7,FALSE)) -> 2 | J14: =IF(ISERROR(VLOOKUP(C14,BDDG!$C$2:$W$6,8,FALSE)),"",VLOOKUP(C14,BDDG!$C$2:$W$6,8,FALSE)) -> iris1 | K14: 10 | L14: 57 | M14: =IF(ISERROR(K14/L14*86.4),"xxxxxxxxxx",K14/L14*86.4) -> 15.15789474 | N14: =IF(ISERROR(VLOOKUP(C14,BDDG!$C$2:$W$6,11,FALSE)),"",VLOOKUP(C14,BDDG!$C$2:$W$6,11,FALSE)) -> iris2 | O14: 10 | P14: 5 | Q14: =IF(ISERROR(O14/P14*86.4),"xxxxxxxxxx",O14/P14*86.4) -> 172.8 | R14: =IF(ISERROR(VLOOKUP(C14,BDDG!$C$2:$W$6,14,FALSE)),"",VLOOKUP(C14,BDDG!$C$2:$W$6,14,FALSE)) -> xxxxxxxxxxxxxxxxxxxxxxxxxxxxxxxxxxxx | S14: xxxxxxxxxx | T14: =IF(ISERROR(R14/S14*86.4),"xxxxxxxxxx",R14/S14*86.4) -> xxxxxxxxxx | U14: =IF(ISERROR(S14/T14*86.4),"xxxxxxxxxx",S14/T14*86.4) -> xxxxxxxxxx | V14: =IF(ISERROR(VLOOKUP(C14,BDDG!$C$2:$W$6,17,FALSE)),"",VLOOKUP(C14,BDDG!$C$2:$W$6,17,FALSE)) -> xxxxxxxxxxxxxxxxxxxxxxxx | W14: xxxxxxxxxx | X14: =IF(ISERROR(V14/W14*86.4),"xxxxxxxxxx",V14/W14*86.4) -> xxxxxxxxxx | Y14: =IF(ISERROR(W14/X14*86.4),"xxxxxxxxxx",W14/X14*86.4) -> xxxxxxxxxx | Z14: =IF(ISERROR(VLOOKUP(C14,BDDG!$C$2:$W$6,20,FALSE)),"",VLOOKUP(C14,BDDG!$C$2:$W$6,20,FALSE)) -> xxxxxxxxxx | AA14: =IF(ISERROR(SUM(M14,Q14,U14)),"",SUM(M14,Q14,U14)) -> 187.9578947 | AB14: =MONTH(A:A) -> 6 | AC14: =YEAR(A:A) -> 2015 | AD14: =IFERROR((INDEX($AA$2:AA14,MATCH(H14&MAX(IF($H$1:H13=H14,$A$1:A13)),$H$2:H14&$A$2:A14,0))-AA14)*-1,"") -> -733.6421053 | AE14: =IF(ISERROR(VLOOKUP(C14,BDDG!$C$2:$W$6,21,FALSE)),"",VLOOKUP(C14,BDDG!$C$2:$W$6,21,FALSE)) -> 0
A15: 2015-06-26 | C15: 823 | D15: =IF(ISNA(VLOOKUP(C15,BDDG!$C$2:$H$47,2,FALSE)),"",VLOOKUP(C15,BDDG!$C$2:$H$47,2,FALSE)) -> 0 | E15: =IF(ISNA(VLOOKUP(C15,BDDG!$C$3:$P$49,3,FALSE)),"",VLOOKUP(C15,BDDG!$C$3:$P$49,3,FALSE)) -> frites | F15: =IF(ISNA(VLOOKUP(C15,BDDG!$C$3:$P$49,4,FALSE)),"",VLOOKUP(C15,BDDG!$C$3:$P$49,4,FALSE)) -> 104 | G15: =IF(ISNA(VLOOKUP(C15,BDDG!$C$2:$H$47,5,FALSE)),"",VLOOKUP(C15,BDDG!$C$2:$H$47,5,FALSE)) -> noix | H15: =IF(ISNA(VLOOKUP(C15,BDDG!$C$2:$H$47,6,FALSE)),"",VLOOKUP(C15,BDDG!$C$2:$H$47,6,FALSE)) -> rose | I15: =IF(ISERROR(VLOOKUP(C15,BDDG!$C$2:$I$47,7,FALSE)),"",VLOOKUP(C15,BDDG!$C$2:$I$47,7,FALSE)) -> 1 | J15: =IF(ISERROR(VLOOKUP(C15,BDDG!$C$2:$W$6,8,FALSE)),"",VLOOKUP(C15,BDDG!$C$2:$W$6,8,FALSE)) -> rose1 | K15: 10 | L15: 33 | M15: =IF(ISERROR(K15/L15*86.4),"xxxxxxxxxx",K15/L15*86.4) -> 26.18181818 | N15: =IF(ISERROR(VLOOKUP(C15,BDDG!$C$2:$W$6,11,FALSE)),"",VLOOKUP(C15,BDDG!$C$2:$W$6,11,FALSE)) -> xxxxxxxxxxxxxxxxxxxxxxxxxxxxxxxxxxxxxxxxxxxxxxx | O15: xxxxxxxxxx | P15: =IF(ISERROR(N15/O15*86.4),"xxxxxxxxxx",N15/O15*86.4) -> xxxxxxxxxx | Q15: =IF(ISERROR(O15/P15*86.4),"xxxxxxxxxx",O15/P15*86.4) -> xxxxxxxxxx | R15: =IF(ISERROR(VLOOKUP(C15,BDDG!$C$2:$W$6,14,FALSE)),"",VLOOKUP(C15,BDDG!$C$2:$W$6,14,FALSE)) -> xxxxxxxxxxxxxxxxxxxxxxxxxxxxxxxxxxxx | S15: xxxxxxxxxx | T15: =IF(ISERROR(R15/S15*86.4),"xxxxxxxxxx",R15/S15*86.4) -> xxxxxxxxxx | U15: =IF(ISERROR(S15/T15*86.4),"xxxxxxxxxx",S15/T15*86.4) -> xxxxxxxxxx | V15: =IF(ISERROR(VLOOKUP(C15,BDDG!$C$2:$W$6,17,FALSE)),"",VLOOKUP(C15,BDDG!$C$2:$W$6,17,FALSE)) -> xxxxxxxxxxxxxxxxxxxxxxxx | W15: xxxxxxxxxx | X15: =IF(ISERROR(V15/W15*86.4),"xxxxxxxxxx",V15/W15*86.4) -> xxxxxxxxxx | Y15: =IF(ISERROR(W15/X15*86.4),"xxxxxxxxxx",W15/X15*86.4) -> xxxxxxxxxx | Z15: =IF(ISERROR(VLOOKUP(C15,BDDG!$C$2:$W$6,20,FALSE)),"",VLOOKUP(C15,BDDG!$C$2:$W$6,20,FALSE)) -> 3 | AA15: =IF(ISERROR(SUM(M15,Q15,U15)),"",SUM(M15,Q15,U15)) -> 26.18181818 | AB15: =MONTH(A:A) -> 6 | AC15: =YEAR(A:A) -> 2015 | AD15: =IFERROR((INDEX($AA$2:AA15,MATCH(H15&MAX(IF($H$1:H14=H15,$A$1:A14)),$H$2:H15&$A$2:A15,0))-AA15)*-1,"") -> -13.09090909 | AE15: =IF(ISERROR(VLOOKUP(C15,BDDG!$C$2:$W$6,21,FALSE)),"",VLOOKUP(C15,BDDG!$C$2:$W$6,21,FALSE)) -> 0
A16: 2015-06-29 | C16: 856 | D16: =IF(ISNA(VLOOKUP(C16,BDDG!$C$2:$H$47,2,FALSE)),"",VLOOKUP(C16,BDDG!$C$2:$H$47,2,FALSE)) -> 0 | E16: =IF(ISNA(VLOOKUP(C16,BDDG!$C$3:$P$49,3,FALSE)),"",VLOOKUP(C16,BDDG!$C$3:$P$49,3,FALSE)) -> pates | F16: =IF(ISNA(VLOOKUP(C16,BDDG!$C$3:$P$49,4,FALSE)),"",VLOOKUP(C16,BDDG!$C$3:$P$49,4,FALSE)) -> 106 | G16: =IF(ISNA(VLOOKUP(C16,BDDG!$C$2:$H$47,5,FALSE)),"",VLOOKUP(C16,BDDG!$C$2:$H$47,5,FALSE)) -> noisettes | H16: =IF(ISNA(VLOOKUP(C16,BDDG!$C$2:$H$47,6,FALSE)),"",VLOOKUP(C16,BDDG!$C$2:$H$47,6,FALSE)) -> iris | I16: =IF(ISERROR(VLOOKUP(C16,BDDG!$C$2:$I$47,7,FALSE)),"",VLOOKUP(C16,BDDG!$C$2:$I$47,7,FALSE)) -> 2 | J16: =IF(ISERROR(VLOOKUP(C16,BDDG!$C$2:$W$6,8,FALSE)),"",VLOOKUP(C16,BDDG!$C$2:$W$6,8,FALSE)) -> iris1 | K16: 10 | L16: 64 | M16: =IF(ISERROR(K16/L16*86.4),"xxxxxxxxxx",K16/L16*86.4) -> 13.5 | N16: =IF(ISERROR(VLOOKUP(C16,BDDG!$C$2:$W$6,11,FALSE)),"",VLOOKUP(C16,BDDG!$C$2:$W$6,11,FALSE)) -> iris2 | O16: 10 | P16: 5 | Q16: =IF(ISERROR(O16/P16*86.4),"xxxxxxxxxx",O16/P16*86.4) -> 172.8 | R16: =IF(ISERROR(VLOOKUP(C16,BDDG!$C$2:$W$6,14,FALSE)),"",VLOOKUP(C16,BDDG!$C$2:$W$6,14,FALSE)) -> xxxxxxxxxxxxxxxxxxxxxxxxxxxxxxxxxxxx | S16: xxxxxxxxxx | T16: =IF(ISERROR(R16/S16*86.4),"xxxxxxxxxx",R16/S16*86.4) -> xxxxxxxxxx | U16: =IF(ISERROR(S16/T16*86.4),"xxxxxxxxxx",S16/T16*86.4) -> xxxxxxxxxx | V16: =IF(ISERROR(VLOOKUP(C16,BDDG!$C$2:$W$6,17,FALSE)),"",VLOOKUP(C16,BDDG!$C$2:$W$6,17,FALSE)) -> xxxxxxxxxxxxxxxxxxxxxxxx | W16: xxxxxxxxxx | X16: =IF(ISERROR(V16/W16*86.4),"xxxxxxxxxx",V16/W16*86.4) -> xxxxxxxxxx | Y16: =IF(ISERROR(W16/X16*86.4),"xxxxxxxxxx",W16/X16*86.4) -> xxxxxxxxxx | Z16: =IF(ISERROR(VLOOKUP(C16,BDDG!$C$2:$W$6,20,FALSE)),"",VLOOKUP(C16,BDDG!$C$2:$W$6,20,FALSE)) -> xxxxxxxxxx | AA16: =IF(ISERROR(SUM(M16,Q16,U16)),"",SUM(M16,Q16,U16)) -> 186.3 | AB16: =MONTH(A:A) -> 6 | AC16: =YEAR(A:A) -> 2015 | AD16: =IFERROR((INDEX($AA$2:AA16,MATCH(H16&MAX(IF($H$1:H15=H16,$A$1:A15)),$H$2:H16&$A$2:A16,0))-AA16)*-1,"") -> -1.657894737 | AE16: =IF(ISERROR(VLOOKUP(C16,BDDG!$C$2:$W$6,21,FALSE)),"",VLOOKUP(C16,BDDG!$C$2:$W$6,21,FALSE)) -> 0
A17: 2015-07-13 | B17: sècheresse | C17: 823 | D17: =IF(ISNA(VLOOKUP(C17,BDDG!$C$2:$H$47,2,FALSE)),"",VLOOKUP(C17,BDDG!$C$2:$H$47,2,FALSE)) -> 0 | E17: =IF(ISNA(VLOOKUP(C17,BDDG!$C$3:$P$49,3,FALSE)),"",VLOOKUP(C17,BDDG!$C$3:$P$49,3,FALSE)) -> frites | F17: =IF(ISNA(VLOOKUP(C17,BDDG!$C$3:$P$49,4,FALSE)),"",VLOOKUP(C17,BDDG!$C$3:$P$49,4,FALSE)) -> 104 | G17: =IF(ISNA(VLOOKUP(C17,BDDG!$C$2:$H$47,5,FALSE)),"",VLOOKUP(C17,BDDG!$C$2:$H$47,5,FALSE)) -> noix | H17: =IF(ISNA(VLOOKUP(C17,BDDG!$C$2:$H$47,6,FALSE)),"",VLOOKUP(C17,BDDG!$C$2:$H$47,6,FALSE)) -> rose | I17: =IF(ISERROR(VLOOKUP(C17,BDDG!$C$2:$I$47,7,FALSE)),"",VLOOKUP(C17,BDDG!$C$2:$I$47,7,FALSE)) -> 1 | J17: =IF(ISERROR(VLOOKUP(C17,BDDG!$C$2:$W$6,8,FALSE)),"",VLOOKUP(C17,BDDG!$C$2:$W$6,8,FALSE)) -> rose1 | K17: 10 | L17: 44 | M17: =IF(ISERROR(K17/L17*86.4),"xxxxxxxxxx",K17/L17*86.4) -> 19.63636364 | N17: =IF(ISERROR(VLOOKUP(C17,BDDG!$C$2:$W$6,11,FALSE)),"",VLOOKUP(C17,BDDG!$C$2:$W$6,11,FALSE)) -> xxxxxxxxxxxxxxxxxxxxxxxxxxxxxxxxxxxxxxxxxxxxxxx | O17: xxxxxxxxxx | P17: =IF(ISERROR(N17/O17*86.4),"xxxxxxxxxx",N17/O17*86.4) -> xxxxxxxxxx | Q17: =IF(ISERROR(O17/P17*86.4),"xxxxxxxxxx",O17/P17*86.4) -> xxxxxxxxxx | R17: =IF(ISERROR(VLOOKUP(C17,BDDG!$C$2:$W$6,14,FALSE)),"",VLOOKUP(C17,BDDG!$C$2:$W$6,14,FALSE)) -> xxxxxxxxxxxxxxxxxxxxxxxxxxxxxxxxxxxx | S17: xxxxxxxxxx | T17: =IF(ISERROR(R17/S17*86.4),"xxxxxxxxxx",R17/S17*86.4) -> xxxxxxxxxx | U17: =IF(ISERROR(S17/T17*86.4),"xxxxxxxxxx",S17/T17*86.4) -> xxxxxxxxxx | V17: =IF(ISERROR(VLOOKUP(C17,BDDG!$C$2:$W$6,17,FALSE)),"",VLOOKUP(C17,BDDG!$C$2:$W$6,17,FALSE)) -> xxxxxxxxxxxxxxxxxxxxxxxx | W17: xxxxxxxxxx | X17: =IF(ISERROR(V17/W17*86.4),"xxxxxxxxxx",V17/W17*86.4) -> xxxxxxxxxx | Y17: =IF(ISERROR(W17/X17*86.4),"xxxxxxxxxx",W17/X17*86.4) -> xxxxxxxxxx | Z17: =IF(ISERROR(VLOOKUP(C17,BDDG!$C$2:$W$6,20,FALSE)),"",VLOOKUP(C17,BDDG!$C$2:$W$6,20,FALSE)) -> 3 | AA17: =IF(ISERROR(SUM(M17,Q17,U17)),"",SUM(M17,Q17,U17)) -> 19.63636364 | AB17: =MONTH(A:A) -> 7 | AC17: =YEAR(A:A) -> 2015 | AD17: =IFERROR((INDEX($AA$2:AA17,MATCH(H17&MAX(IF($H$1:H16=H17,$A$1:A16)),$H$2:H17&$A$2:A17,0))-AA17)*-1,"") -> -6.545454545 | AE17: =IF(ISERROR(VLOOKUP(C17,BDDG!$C$2:$W$6,21,FALSE)),"",VLOOKUP(C17,BDDG!$C$2:$W$6,21,FALSE)) -> 0
A18: 2015-07-21 | B18: sècheresse | C18: 856 | D18: =IF(ISNA(VLOOKUP(C18,BDDG!$C$2:$H$47,2,FALSE)),"",VLOOKUP(C18,BDDG!$C$2:$H$47,2,FALSE)) -> 0 | E18: =IF(ISNA(VLOOKUP(C18,BDDG!$C$3:$P$49,3,FALSE)),"",VLOOKUP(C18,BDDG!$C$3:$P$49,3,FALSE)) -> pates | F18: =IF(ISNA(VLOOKUP(C18,BDDG!$C$3:$P$49,4,FALSE)),"",VLOOKUP(C18,BDDG!$C$3:$P$49,4,FALSE)) -> 106 | G18: =IF(ISNA(VLOOKUP(C18,BDDG!$C$2:$H$47,5,FALSE)),"",VLOOKUP(C18,BDDG!$C$2:$H$47,5,FALSE)) -> noisettes | H18: =IF(ISNA(VLOOKUP(C18,BDDG!$C$2:$H$47,6,FALSE)),"",VLOOKUP(C18,BDDG!$C$2:$H$47,6,FALSE)) -> iris | I18: =IF(ISERROR(VLOOKUP(C18,BDDG!$C$2:$I$47,7,FALSE)),"",VLOOKUP(C18,BDDG!$C$2:$I$47,7,FALSE)) -> 2 | J18: =IF(ISERROR(VLOOKUP(C18,BDDG!$C$2:$W$6,8,FALSE)),"",VLOOKUP(C18,BDDG!$C$2:$W$6,8,FALSE)) -> iris1 | K18: 2 | L18: 15.98 | M18: =IF(ISERROR(K18/L18*86.4),"xxxxxxxxxx",K18/L18*86.4) -> 10.8135169 | N18: =IF(ISERROR(VLOOKUP(C18,BDDG!$C$2:$W$6,11,FALSE)),"",VLOOKUP(C18,BDDG!$C$2:$W$6,11,FALSE)) -> iris2 | O18: 10 | P18: 8.81 | Q18: =IF(ISERROR(O18/P18*86.4),"xxxxxxxxxx",O18/P18*86.4) -> 98.07037457 | R18: =IF(ISERROR(VLOOKUP(C18,BDDG!$C$2:$W$6,14,FALSE)),"",VLOOKUP(C18,BDDG!$C$2:$W$6,14,FALSE)) -> xxxxxxxxxxxxxxxxxxxxxxxxxxxxxxxxxxxx | S18: xxxxxxxxxx | T18: =IF(ISERROR(R18/S18*86.4),"xxxxxxxxxx",R18/S18*86.4) -> xxxxxxxxxx | U18: =IF(ISERROR(S18/T18*86.4),"xxxxxxxxxx",S18/T18*86.4) -> xxxxxxxxxx | V18: =IF(ISERROR(VLOOKUP(C18,BDDG!$C$2:$W$6,17,FALSE)),"",VLOOKUP(C18,BDDG!$C$2:$W$6,17,FALSE)) -> xxxxxxxxxxxxxxxxxxxxxxxx | W18: xxxxxxxxxx | X18: =IF(ISERROR(V18/W18*86.4),"xxxxxxxxxx",V18/W18*86.4) -> xxxxxxxxxx | Y18: =IF(ISERROR(W18/X18*86.4),"xxxxxxxxxx",W18/X18*86.4) -> xxxxxxxxxx | Z18: =IF(ISERROR(VLOOKUP(C18,BDDG!$C$2:$W$6,20,FALSE)),"",VLOOKUP(C18,BDDG!$C$2:$W$6,20,FALSE)) -> xxxxxxxxxx | AA18: =IF(ISERROR(SUM(M18,Q18,U18)),"",SUM(M18,Q18,U18)) -> 108.8838915 | AB18: =MONTH(A:A) -> 7 | AC18: =YEAR(A:A) -> 2015 | AD18: =IFERROR((INDEX($AA$2:AA18,MATCH(H18&MAX(IF($H$1:H17=H18,$A$1:A17)),$H$2:H18&$A$2:A18,0))-AA18)*-1,"") -> -77.41610853 | AE18: =IF(ISERROR(VLOOKUP(C18,BDDG!$C$2:$W$6,21,FALSE)),"",VLOOKUP(C18,BDDG!$C$2:$W$6,21,FALSE)) -> 0
A19: 2015-08-07 | B19: sècheresse | C19: 823 | D19: =IF(ISNA(VLOOKUP(C19,BDDG!$C$2:$H$47,2,FALSE)),"",VLOOKUP(C19,BDDG!$C$2:$H$47,2,FALSE)) -> 0 | E19: =IF(ISNA(VLOOKUP(C19,BDDG!$C$3:$P$49,3,FALSE)),"",VLOOKUP(C19,BDDG!$C$3:$P$49,3,FALSE)) -> frites | F19: =IF(ISNA(VLOOKUP(C19,BDDG!$C$3:$P$49,4,FALSE)),"",VLOOKUP(C19,BDDG!$C$3:$P$49,4,FALSE)) -> 104 | G19: =IF(ISNA(VLOOKUP(C19,BDDG!$C$2:$H$47,5,FALSE)),"",VLOOKUP(C19,BDDG!$C$2:$H$47,5,FALSE)) -> noix | H19: =IF(ISNA(VLOOKUP(C19,BDDG!$C$2:$H$47,6,FALSE)),"",VLOOKUP(C19,BDDG!$C$2:$H$47,6,FALSE)) -> rose | I19: =IF(ISERROR(VLOOKUP(C19,BDDG!$C$2:$I$47,7,FALSE)),"",VLOOKUP(C19,BDDG!$C$2:$I$47,7,FALSE)) -> 1 | J19: =IF(ISERROR(VLOOKUP(C19,BDDG!$C$2:$W$6,8,FALSE)),"",VLOOKUP(C19,BDDG!$C$2:$W$6,8,FALSE)) -> rose1 | K19: 2 | L19: 9 | M19: =IF(ISERROR(K19/L19*86.4),"xxxxxxxxxx",K19/L19*86.4) -> 19.2 | N19: =IF(ISERROR(VLOOKUP(C19,BDDG!$C$2:$W$6,11,FALSE)),"",VLOOKUP(C19,BDDG!$C$2:$W$6,11,FALSE)) -> xxxxxxxxxxxxxxxxxxxxxxxxxxxxxxxxxxxxxxxxxxxxxxx | O19: xxxxxxxxxx | P19: =IF(ISERROR(N19/O19*86.4),"xxxxxxxxxx",N19/O19*86.4) -> xxxxxxxxxx | Q19: =IF(ISERROR(O19/P19*86.4),"xxxxxxxxxx",O19/P19*86.4) -> xxxxxxxxxx | R19: =IF(ISERROR(VLOOKUP(C19,BDDG!$C$2:$W$6,14,FALSE)),"",VLOOKUP(C19,BDDG!$C$2:$W$6,14,FALSE)) -> xxxxxxxxxxxxxxxxxxxxxxxxxxxxxxxxxxxx | S19: xxxxxxxxxx | T19: =IF(ISERROR(R19/S19*86.4),"xxxxxxxxxx",R19/S19*86.4) -> xxxxxxxxxx | U19: =IF(ISERROR(S19/T19*86.4),"xxxxxxxxxx",S19/T19*86.4) -> xxxxxxxxxx | V19: =IF(ISERROR(VLOOKUP(C19,BDDG!$C$2:$W$6,17,FALSE)),"",VLOOKUP(C19,BDDG!$C$2:$W$6,17,FALSE)) -> xxxxxxxxxxxxxxxxxxxxxxxx | W19: xxxxxxxxxx | X19: =IF(ISERROR(V19/W19*86.4),"xxxxxxxxxx",V19/W19*86.4) -> xxxxxxxxxx | Y19: =IF(ISERROR(W19/X19*86.4),"xxxxxxxxxx",W19/X19*86.4) -> xxxxxxxxxx | Z19: =IF(ISERROR(VLOOKUP(C19,BDDG!$C$2:$W$6,20,FALSE)),"",VLOOKUP(C19,BDDG!$C$2:$W$6,20,FALSE)) -> 3 | AA19: =IF(ISERROR(SUM(M19,Q19,U19)),"",SUM(M19,Q19,U19)) -> 19.2 | AB19: =MONTH(A:A) -> 8 | AC19: =YEAR(A:A) -> 2015 | AD19: =IFERROR((INDEX($AA$2:AA19,MATCH(H19&MAX(IF($H$1:H18=H19,$A$1:A18)),$H$2:H19&$A$2:A19,0))-AA19)*-1,"") -> -0.4363636364 | AE19: =IF(ISERROR(VLOOKUP(C19,BDDG!$C$2:$W$6,21,FALSE)),"",VLOOKUP(C19,BDDG!$C$2:$W$6,21,FALSE)) -> 0
A20: 2015-09-01 | B20: Pluie | C20: 856 | D20: =IF(ISNA(VLOOKUP(C20,BDDG!$C$2:$H$47,2,FALSE)),"",VLOOKUP(C20,BDDG!$C$2:$H$47,2,FALSE)) -> 0 | E20: =IF(ISNA(VLOOKUP(C20,BDDG!$C$3:$P$49,3,FALSE)),"",VLOOKUP(C20,BDDG!$C$3:$P$49,3,FALSE)) -> pates | F20: =IF(ISNA(VLOOKUP(C20,BDDG!$C$3:$P$49,4,FALSE)),"",VLOOKUP(C20,BDDG!$C$3:$P$49,4,FALSE)) -> 106 | G20: =IF(ISNA(VLOOKUP(C20,BDDG!$C$2:$H$47,5,FALSE)),"",VLOOKUP(C20,BDDG!$C$2:$H$47,5,FALSE)) -> noisettes | H20: =IF(ISNA(VLOOKUP(C20,BDDG!$C$2:$H$47,6,FALSE)),"",VLOOKUP(C20,BDDG!$C$2:$H$47,6,FALSE)) -> iris | I20: =IF(ISERROR(VLOOKUP(C20,BDDG!$C$2:$I$47,7,FALSE)),"",VLOOKUP(C20,BDDG!$C$2:$I$47,7,FALSE)) -> 2 | J20: =IF(ISERROR(VLOOKUP(C20,BDDG!$C$2:$W$6,8,FALSE)),"",VLOOKUP(C20,BDDG!$C$2:$W$6,8,FALSE)) -> iris1 | K20: 5 | L20: 54 | M20: =IF(ISERROR(K20/L20*86.4),"xxxxxxxxxx",K20/L20*86.4) -> 8 | N20: =IF(ISERROR(VLOOKUP(C20,BDDG!$C$2:$W$6,11,FALSE)),"",VLOOKUP(C20,BDDG!$C$2:$W$6,11,FALSE)) -> iris2 | O20: 10 | P20: 11.55 | Q20: =IF(ISERROR(O20/P20*86.4),"xxxxxxxxxx",O20/P20*86.4) -> 74.80519481 | R20: =IF(ISERROR(VLOOKUP(C20,BDDG!$C$2:$W$6,14,FALSE)),"",VLOOKUP(C20,BDDG!$C$2:$W$6,14,FALSE)) -> xxxxxxxxxxxxxxxxxxxxxxxxxxxxxxxxxxxx | S20: xxxxxxxxxx | T20: =IF(ISERROR(R20/S20*86.4),"xxxxxxxxxx",R20/S20*86.4) -> xxxxxxxxxx | U20: =IF(ISERROR(S20/T20*86.4),"xxxxxxxxxx",S20/T20*86.4) -> xxxxxxxxxx | V20: =IF(ISERROR(VLOOKUP(C20,BDDG!$C$2:$W$6,17,FALSE)),"",VLOOKUP(C20,BDDG!$C$2:$W$6,17,FALSE)) -> xxxxxxxxxxxxxxxxxxxxxxxx | W20: xxxxxxxxxx | X20: =IF(ISERROR(V20/W20*86.4),"xxxxxxxxxx",V20/W20*86.4) -> xxxxxxxxxx | Y20: =IF(ISERROR(W20/X20*86.4),"xxxxxxxxxx",W20/X20*86.4) -> xxxxxxxxxx | Z20: =IF(ISERROR(VLOOKUP(C20,BDDG!$C$2:$W$6,20,FALSE)),"",VLOOKUP(C20,BDDG!$C$2:$W$6,20,FALSE)) -> xxxxxxxxxx | AA20: =IF(ISERROR(SUM(M20,Q20,U20)),"",SUM(M20,Q20,U20)) -> 82.80519481 | AB20: =MONTH(A:A) -> 9 | AC20: =YEAR(A:A) -> 2015 | AD20: =IFERROR((INDEX($AA$2:AA20,MATCH(H20&MAX(IF($H$1:H19=H20,$A$1:A19)),$H$2:H20&$A$2:A20,0))-AA20)*-1,"") -> -26.07869667 | AE20: =IF(ISERROR(VLOOKUP(C20,BDDG!$C$2:$W$6,21,FALSE)),"",VLOOKUP(C20,BDDG!$C$2:$W$6,21,FALSE)) -> 0
A21: 2015-09-03 | B21: couvert | C21: 823 | D21: =IF(ISNA(VLOOKUP(C21,BDDG!$C$2:$H$47,2,FALSE)),"",VLOOKUP(C21,BDDG!$C$2:$H$47,2,FALSE)) -> 0 | E21: =IF(ISNA(VLOOKUP(C21,BDDG!$C$3:$P$49,3,FALSE)),"",VLOOKUP(C21,BDDG!$C$3:$P$49,3,FALSE)) -> frites | F21: =IF(ISNA(VLOOKUP(C21,BDDG!$C$3:$P$49,4,FALSE)),"",VLOOKUP(C21,BDDG!$C$3:$P$49,4,FALSE)) -> 104 | G21: =IF(ISNA(VLOOKUP(C21,BDDG!$C$2:$H$47,5,FALSE)),"",VLOOKUP(C21,BDDG!$C$2:$H$47,5,FALSE)) -> noix | H21: =IF(ISNA(VLOOKUP(C21,BDDG!$C$2:$H$47,6,FALSE)),"",VLOOKUP(C21,BDDG!$C$2:$H$47,6,FALSE)) -> rose | I21: =IF(ISERROR(VLOOKUP(C21,BDDG!$C$2:$I$47,7,FALSE)),"",VLOOKUP(C21,BDDG!$C$2:$I$47,7,FALSE)) -> 1 | J21: =IF(ISERROR(VLOOKUP(C21,BDDG!$C$2:$W$6,8,FALSE)),"",VLOOKUP(C21,BDDG!$C$2:$W$6,8,FALSE)) -> rose1 | K21: 5 | L21: 28.35 | M21: =IF(ISERROR(K21/L21*86.4),"xxxxxxxxxx",K21/L21*86.4) -> 15.23809524 | N21: =IF(ISERROR(VLOOKUP(C21,BDDG!$C$2:$W$6,11,FALSE)),"",VLOOKUP(C21,BDDG!$C$2:$W$6,11,FALSE)) -> xxxxxxxxxxxxxxxxxxxxxxxxxxxxxxxxxxxxxxxxxxxxxxx | O21: xxxxxxxxxx | P21: =IF(ISERROR(N21/O21*86.4),"xxxxxxxxxx",N21/O21*86.4) -> xxxxxxxxxx | Q21: =IF(ISERROR(O21/P21*86.4),"xxxxxxxxxx",O21/P21*86.4) -> xxxxxxxxxx | R21: =IF(ISERROR(VLOOKUP(C21,BDDG!$C$2:$W$6,14,FALSE)),"",VLOOKUP(C21,BDDG!$C$2:$W$6,14,FALSE)) -> xxxxxxxxxxxxxxxxxxxxxxxxxxxxxxxxxxxx | S21: xxxxxxxxxx | T21: =IF(ISERROR(R21/S21*86.4),"xxxxxxxxxx",R21/S21*86.4) -> xxxxxxxxxx | U21: =IF(ISERROR(S21/T21*86.4),"xxxxxxxxxx",S21/T21*86.4) -> xxxxxxxxxx | V21: =IF(ISERROR(VLOOKUP(C21,BDDG!$C$2:$W$6,17,FALSE)),"",VLOOKUP(C21,BDDG!$C$2:$W$6,17,FALSE)) -> xxxxxxxxxxxxxxxxxxxxxxxx | W21: xxxxxxxxxx | X21: =IF(ISERROR(V21/W21*86.4),"xxxxxxxxxx",V21/W21*86.4) -> xxxxxxxxxx | Y21: =IF(ISERROR(W21/X21*86.4),"xxxxxxxxxx",W21/X21*86.4) -> xxxxxxxxxx | Z21: =IF(ISERROR(VLOOKUP(C21,BDDG!$C$2:$W$6,20,FALSE)),"",VLOOKUP(C21,BDDG!$C$2:$W$6,20,FALSE)) -> 3 | AA21: =IF(ISERROR(SUM(M21,Q21,U21)),"",SUM(M21,Q21,U21)) -> 15.23809524 | AB21: =MONTH(A:A) -> 9 | AC21: =YEAR(A:A) -> 2015 | AD21: =IFERROR((INDEX($AA$2:AA21,MATCH(H21&MAX(IF($H$1:H20=H21,$A$1:A20)),$H$2:H21&$A$2:A21,0))-AA21)*-1,"") -> -3.961904762 | AE21: =IF(ISERROR(VLOOKUP(C21,BDDG!$C$2:$W$6,21,FALSE)),"",VLOOKUP(C21,BDDG!$C$2:$W$6,21,FALSE)) -> 0
A22: 2015-09-22 | B22: couvert | C22: 856 | D22: =IF(ISNA(VLOOKUP(C22,BDDG!$C$2:$H$47,2,FALSE)),"",VLOOKUP(C22,BDDG!$C$2:$H$47,2,FALSE)) -> 0 | E22: =IF(ISNA(VLOOKUP(C22,BDDG!$C$3:$P$49,3,FALSE)),"",VLOOKUP(C22,BDDG!$C$3:$P$49,3,FALSE)) -> pates | F22: =IF(ISNA(VLOOKUP(C22,BDDG!$C$3:$P$49,4,FALSE)),"",VLOOKUP(C22,BDDG!$C$3:$P$49,4,FALSE)) -> 106 | G22: =IF(ISNA(VLOOKUP(C22,BDDG!$C$2:$H$47,5,FALSE)),"",VLOOKUP(C22,BDDG!$C$2:$H$47,5,FALSE)) -> noisettes | H22: =IF(ISNA(VLOOKUP(C22,BDDG!$C$2:$H$47,6,FALSE)),"",VLOOKUP(C22,BDDG!$C$2:$H$47,6,FALSE)) -> iris | I22: =IF(ISERROR(VLOOKUP(C22,BDDG!$C$2:$I$47,7,FALSE)),"",VLOOKUP(C22,BDDG!$C$2:$I$47,7,FALSE)) -> 2 | J22: =IF(ISERROR(VLOOKUP(C22,BDDG!$C$2:$W$6,8,FALSE)),"",VLOOKUP(C22,BDDG!$C$2:$W$6,8,FALSE)) -> iris1 | K22: 2 | L22: 19.75 | M22: =IF(ISERROR(K22/L22*86.4),"xxxxxxxxxx",K22/L22*86.4) -> 8.749367089 | N22: =IF(ISERROR(VLOOKUP(C22,BDDG!$C$2:$W$6,11,FALSE)),"",VLOOKUP(C22,BDDG!$C$2:$W$6,11,FALSE)) -> iris2 | O22: 10 | P22: 11.72 | Q22: =IF(ISERROR(O22/P22*86.4),"xxxxxxxxxx",O22/P22*86.4) -> 73.72013652 | R22: =IF(ISERROR(VLOOKUP(C22,BDDG!$C$2:$W$6,14,FALSE)),"",VLOOKUP(C22,BDDG!$C$2:$W$6,14,FALSE)) -> xxxxxxxxxxxxxxxxxxxxxxxxxxxxxxxxxxxx | S22: xxxxxxxxxx | T22: =IF(ISERROR(R22/S22*86.4),"xxxxxxxxxx",R22/S22*86.4) -> xxxxxxxxxx | U22: =IF(ISERROR(S22/T22*86.4),"xxxxxxxxxx",S22/T22*86.4) -> xxxxxxxxxx | V22: =IF(ISERROR(VLOOKUP(C22,BDDG!$C$2:$W$6,17,FALSE)),"",VLOOKUP(C22,BDDG!$C$2:$W$6,17,FALSE)) -> xxxxxxxxxxxxxxxxxxxxxxxx | W22: xxxxxxxxxx | X22: =IF(ISERROR(V22/W22*86.4),"xxxxxxxxxx",V22/W22*86.4) -> xxxxxxxxxx | Y22: =IF(ISERROR(W22/X22*86.4),"xxxxxxxxxx",W22/X22*86.4) -> xxxxxxxxxx | Z22: =IF(ISERROR(VLOOKUP(C22,BDDG!$C$2:$W$6,20,FALSE)),"",VLOOKUP(C22,BDDG!$C$2:$W$6,20,FALSE)) -> xxxxxxxxxx | AA22: =IF(ISERROR(SUM(M22,Q22,U22)),"",SUM(M22,Q22,U22)) -> 82.46950361 | AB22: =MONTH(A:A) -> 9 | AC22: =YEAR(A:A) -> 2015 | AD22: =IFERROR((INDEX($AA$2:AA22,MATCH(H22&MAX(IF($H$1:H21=H22,$A$1:A21)),$H$2:H22&$A$2:A22,0))-AA22)*-1,"") -> -0.3356911978 | AE22: =IF(ISERROR(VLOOKUP(C22,BDDG!$C$2:$W$6,21,FALSE)),"",VLOOKUP(C22,BDDG!$C$2:$W$6,21,FALSE)) -> 0
A23: 2015-09-25 | B23: couvert | C23: 823 | D23: =IF(ISNA(VLOOKUP(C23,BDDG!$C$2:$H$47,2,FALSE)),"",VLOOKUP(C23,BDDG!$C$2:$H$47,2,FALSE)) -> 0 | E23: =IF(ISNA(VLOOKUP(C23,BDDG!$C$3:$P$49,3,FALSE)),"",VLOOKUP(C23,BDDG!$C$3:$P$49,3,FALSE)) -> frites | F23: =IF(ISNA(VLOOKUP(C23,BDDG!$C$3:$P$49,4,FALSE)),"",VLOOKUP(C23,BDDG!$C$3:$P$49,4,FALSE)) -> 104 | G23: =IF(ISNA(VLOOKUP(C23,BDDG!$C$2:$H$47,5,FALSE)),"",VLOOKUP(C23,BDDG!$C$2:$H$47,5,FALSE)) -> noix | H23: =IF(ISNA(VLOOKUP(C23,BDDG!$C$2:$H$47,6,FALSE)),"",VLOOKUP(C23,BDDG!$C$2:$H$47,6,FALSE)) -> rose | I23: =IF(ISERROR(VLOOKUP(C23,BDDG!$C$2:$I$47,7,FALSE)),"",VLOOKUP(C23,BDDG!$C$2:$I$47,7,FALSE)) -> 1 | J23: =IF(ISERROR(VLOOKUP(C23,BDDG!$C$2:$W$6,8,FALSE)),"",VLOOKUP(C23,BDDG!$C$2:$W$6,8,FALSE)) -> rose1 | K23: 10 | L23: 41.5 | M23: =IF(ISERROR(K23/L23*86.4),"xxxxxxxxxx",K23/L23*86.4) -> 20.81927711 | N23: =IF(ISERROR(VLOOKUP(C23,BDDG!$C$2:$W$6,11,FALSE)),"",VLOOKUP(C23,BDDG!$C$2:$W$6,11,FALSE)) -> xxxxxxxxxxxxxxxxxxxxxxxxxxxxxxxxxxxxxxxxxxxxxxx | O23: xxxxxxxxxx | P23: =IF(ISERROR(N23/O23*86.4),"xxxxxxxxxx",N23/O23*86.4) -> xxxxxxxxxx | Q23: =IF(ISERROR(O23/P23*86.4),"xxxxxxxxxx",O23/P23*86.4) -> xxxxxxxxxx | R23: =IF(ISERROR(VLOOKUP(C23,BDDG!$C$2:$W$6,14,FALSE)),"",VLOOKUP(C23,BDDG!$C$2:$W$6,14,FALSE)) -> xxxxxxxxxxxxxxxxxxxxxxxxxxxxxxxxxxxx | S23: xxxxxxxxxx | T23: =IF(ISERROR(R23/S23*86.4),"xxxxxxxxxx",R23/S23*86.4) -> xxxxxxxxxx | U23: =IF(ISERROR(S23/T23*86.4),"xxxxxxxxxx",S23/T23*86.4) -> xxxxxxxxxx | V23: =IF(ISERROR(VLOOKUP(C23,BDDG!$C$2:$W$6,17,FALSE)),"",VLOOKUP(C23,BDDG!$C$2:$W$6,17,FALSE)) -> xxxxxxxxxxxxxxxxxxxxxxxx | W23: xxxxxxxxxx | X23: =IF(ISERROR(V23/W23*86.4),"xxxxxxxxxx",V23/W23*86.4) -> xxxxxxxxxx | Y23: =IF(ISERROR(W23/X23*86.4),"xxxxxxxxxx",W23/X23*86.4) -> xxxxxxxxxx | Z23: =IF(ISERROR(VLOOKUP(C23,BDDG!$C$2:$W$6,20,FALSE)),"",VLOOKUP(C23,BDDG!$C$2:$W$6,20,FALSE)) -> 3 | AA23: =IF(ISERROR(SUM(M23,Q23,U23)),"",SUM(M23,Q23,U23)) -> 20.81927711 | AB23: =MONTH(A:A) -> 9 | AC23: =YEAR(A:A) -> 2015 | AD23: =IFERROR((INDEX($AA$2:AA23,MATCH(H23&MAX(IF($H$1:H22=H23,$A$1:A22)),$H$2:H23&$A$2:A23,0))-AA23)*-1,"") -> 5.58118187 | AE23: =IF(ISERROR(VLOOKUP(C23,BDDG!$C$2:$W$6,21,FALSE)),"",VLOOKUP(C23,BDDG!$C$2:$W$6,21,FALSE)) -> 0
A24: 2015-11-12 | B24: Couvert | C24: 856 | D24: =IF(ISNA(VLOOKUP(C24,BDDG!$C$2:$H$47,2,FALSE)),"",VLOOKUP(C24,BDDG!$C$2:$H$47,2,FALSE)) -> 0 | E24: =IF(ISNA(VLOOKUP(C24,BDDG!$C$3:$P$49,3,FALSE)),"",VLOOKUP(C24,BDDG!$C$3:$P$49,3,FALSE)) -> pates | F24: =IF(ISNA(VLOOKUP(C24,BDDG!$C$3:$P$49,4,FALSE)),"",VLOOKUP(C24,BDDG!$C$3:$P$49,4,FALSE)) -> 106 | G24: =IF(ISNA(VLOOKUP(C24,BDDG!$C$2:$H$47,5,FALSE)),"",VLOOKUP(C24,BDDG!$C$2:$H$47,5,FALSE)) -> noisettes | H24: =IF(ISNA(VLOOKUP(C24,BDDG!$C$2:$H$47,6,FALSE)),"",VLOOKUP(C24,BDDG!$C$2:$H$47,6,FALSE)) -> iris | I24: =IF(ISERROR(VLOOKUP(C24,BDDG!$C$2:$I$47,7,FALSE)),"",VLOOKUP(C24,BDDG!$C$2:$I$47,7,FALSE)) -> 2 | J24: =IF(ISERROR(VLOOKUP(C24,BDDG!$C$2:$W$6,8,FALSE)),"",VLOOKUP(C24,BDDG!$C$2:$W$6,8,FALSE)) -> iris1 | K24: 0.1 | L24: 1 | M24: =IF(ISERROR(K24/L24*86.4),"xxxxxxxxxx",K24/L24*86.4) -> 8.64 | N24: =IF(ISERROR(VLOOKUP(C24,BDDG!$C$2:$W$6,11,FALSE)),"",VLOOKUP(C24,BDDG!$C$2:$W$6,11,FALSE)) -> iris2 | O24: 0.7 | P24: 1 | Q24: =IF(ISERROR(O24/P24*86.4),"xxxxxxxxxx",O24/P24*86.4) -> 60.48 | R24: =IF(ISERROR(VLOOKUP(C24,BDDG!$C$2:$W$6,14,FALSE)),"",VLOOKUP(C24,BDDG!$C$2:$W$6,14,FALSE)) -> xxxxxxxxxxxxxxxxxxxxxxxxxxxxxxxxxxxx | S24: xxxxxxxxxx | T24: =IF(ISERROR(R24/S24*86.4),"xxxxxxxxxx",R24/S24*86.4) -> xxxxxxxxxx | U24: =IF(ISERROR(S24/T24*86.4),"xxxxxxxxxx",S24/T24*86.4) -> xxxxxxxxxx | V24: =IF(ISERROR(VLOOKUP(C24,BDDG!$C$2:$W$6,17,FALSE)),"",VLOOKUP(C24,BDDG!$C$2:$W$6,17,FALSE)) -> xxxxxxxxxxxxxxxxxxxxxxxx | W24: xxxxxxxxxx | X24: =IF(ISERROR(V24/W24*86.4),"xxxxxxxxxx",V24/W24*86.4) -> xxxxxxxxxx | Y24: =IF(ISERROR(W24/X24*86.4),"xxxxxxxxxx",W24/X24*86.4) -> xxxxxxxxxx | Z24: =IF(ISERROR(VLOOKUP(C24,BDDG!$C$2:$W$6,20,FALSE)),"",VLOOKUP(C24,BDDG!$C$2:$W$6,20,FALSE)) -> xxxxxxxxxx | AA24: =IF(ISERROR(SUM(M24,Q24,U24)),"",SUM(M24,Q24,U24)) -> 69.12 | AB24: =MONTH(A:A) -> 11 | AC24: =YEAR(A:A) -> 2015 | AD24: =IFERROR((INDEX($AA$2:AA24,MATCH(H24&MAX(IF($H$1:H23=H24,$A$1:A23)),$H$2:H24&$A$2:A24,0))-AA24)*-1,"") -> -13.34950361 | AE24: =IF(ISERROR(VLOOKUP(C24,BDDG!$C$2:$W$6,21,FALSE)),"",VLOOKUP(C24,BDDG!$C$2:$W$6,21,FALSE)) -> 0
A25: 2015-12-15 | B25: Couvert | C25: 856 | D25: =IF(ISNA(VLOOKUP(C25,BDDG!$C$2:$H$47,2,FALSE)),"",VLOOKUP(C25,BDDG!$C$2:$H$47,2,FALSE)) -> 0 | E25: =IF(ISNA(VLOOKUP(C25,BDDG!$C$3:$P$49,3,FALSE)),"",VLOOKUP(C25,BDDG!$C$3:$P$49,3,FALSE)) -> pates | F25: =IF(ISNA(VLOOKUP(C25,BDDG!$C$3:$P$49,4,FALSE)),"",VLOOKUP(C25,BDDG!$C$3:$P$49,4,FALSE)) -> 106 | G25: =IF(ISNA(VLOOKUP(C25,BDDG!$C$2:$H$47,5,FALSE)),"",VLOOKUP(C25,BDDG!$C$2:$H$47,5,FALSE)) -> noisettes | H25: =IF(ISNA(VLOOKUP(C25,BDDG!$C$2:$H$47,6,FALSE)),"",VLOOKUP(C25,BDDG!$C$2:$H$47,6,FALSE)) -> iris | I25: =IF(ISERROR(VLOOKUP(C25,BDDG!$C$2:$I$47,7,FALSE)),"",VLOOKUP(C25,BDDG!$C$2:$I$47,7,FALSE)) -> 2 | J25: =IF(ISERROR(VLOOKUP(C25,BDDG!$C$2:$W$6,8,FALSE)),"",VLOOKUP(C25,BDDG!$C$2:$W$6,8,FALSE)) -> iris1 | K25: 5 | L25: 33.22 | M25: =IF(ISERROR(K25/L25*86.4),"xxxxxxxxxx",K25/L25*86.4) -> 13.00421433 | N25: =IF(ISERROR(VLOOKUP(C25,BDDG!$C$2:$W$6,11,FALSE)),"",VLOOKUP(C25,BDDG!$C$2:$W$6,11,FALSE)) -> iris2 | O25: 10 | P25: 13.16 | Q25: =IF(ISERROR(O25/P25*86.4),"xxxxxxxxxx",O25/P25*86.4) -> 65.65349544 | R25: =IF(ISERROR(VLOOKUP(C25,BDDG!$C$2:$W$6,14,FALSE)),"",VLOOKUP(C25,BDDG!$C$2:$W$6,14,FALSE)) -> xxxxxxxxxxxxxxxxxxxxxxxxxxxxxxxxxxxx | S25: xxxxxxxxxx | T25: =IF(ISERROR(R25/S25*86.4),"xxxxxxxxxx",R25/S25*86.4) -> xxxxxxxxxx | U25: =IF(ISERROR(S25/T25*86.4),"xxxxxxxxxx",S25/T25*86.4) -> xxxxxxxxxx | V25: =IF(ISERROR(VLOOKUP(C25,BDDG!$C$2:$W$6,17,FALSE)),"",VLOOKUP(C25,BDDG!$C$2:$W$6,17,FALSE)) -> xxxxxxxxxxxxxxxxxxxxxxxx | W25: xxxxxxxxxx | X25: =IF(ISERROR(V25/W25*86.4),"xxxxxxxxxx",V25/W25*86.4) -> xxxxxxxxxx | Y25: =IF(ISERROR(W25/X25*86.4),"xxxxxxxxxx",W25/X25*86.4) -> xxxxxxxxxx | Z25: =IF(ISERROR(VLOOKUP(C25,BDDG!$C$2:$W$6,20,FALSE)),"",VLOOKUP(C25,BDDG!$C$2:$W$6,20,FALSE)) -> xxxxxxxxxx | AA25: =IF(ISERROR(SUM(M25,Q25,U25)),"",SUM(M25,Q25,U25)) -> 78.65770977 | AB25: =MONTH(A:A) -> 12 | AC25: =YEAR(A:A) -> 2015 | AD25: =IFERROR((INDEX($AA$2:AA25,MATCH(H25&MAX(IF($H$1:H24=H25,$A$1:A24)),$H$2:H25&$A$2:A25,0))-AA25)*-1,"") -> 9.537709769 | AE25: =IF(ISERROR(VLOOKUP(C25,BDDG!$C$2:$W$6,21,FALSE)),"",VLOOKUP(C25,BDDG!$C$2:$W$6,21,FALSE)) -> 0
A26: 2015-12-18 | B26: Couvert | C26: 823 | D26: =IF(ISNA(VLOOKUP(C26,BDDG!$C$2:$H$47,2,FALSE)),"",VLOOKUP(C26,BDDG!$C$2:$H$47,2,FALSE)) -> 0 | E26: =IF(ISNA(VLOOKUP(C26,BDDG!$C$3:$P$49,3,FALSE)),"",VLOOKUP(C26,BDDG!$C$3:$P$49,3,FALSE)) -> frites | F26: =IF(ISNA(VLOOKUP(C26,BDDG!$C$3:$P$49,4,FALSE)),"",VLOOKUP(C26,BDDG!$C$3:$P$49,4,FALSE)) -> 104 | G26: =IF(ISNA(VLOOKUP(C26,BDDG!$C$2:$H$47,5,FALSE)),"",VLOOKUP(C26,BDDG!$C$2:$H$47,5,FALSE)) -> noix | H26: =IF(ISNA(VLOOKUP(C26,BDDG!$C$2:$H$47,6,FALSE)),"",VLOOKUP(C26,BDDG!$C$2:$H$47,6,FALSE)) -> rose | I26: =IF(ISERROR(VLOOKUP(C26,BDDG!$C$2:$I$47,7,FALSE)),"",VLOOKUP(C26,BDDG!$C$2:$I$47,7,FALSE)) -> 1 | J26: =IF(ISERROR(VLOOKUP(C26,BDDG!$C$2:$W$6,8,FALSE)),"",VLOOKUP(C26,BDDG!$C$2:$W$6,8,FALSE)) -> rose1 | K26: 5 | L26: 27.84 | M26: =IF(ISERROR(K26/L26*86.4),"xxxxxxxxxx",K26/L26*86.4) -> 15.51724138 | N26: =IF(ISERROR(VLOOKUP(C26,BDDG!$C$2:$W$6,11,FALSE)),"",VLOOKUP(C26,BDDG!$C$2:$W$6,11,FALSE)) -> xxxxxxxxxxxxxxxxxxxxxxxxxxxxxxxxxxxxxxxxxxxxxxx | O26: xxxxxxxxxx | P26: =IF(ISERROR(N26/O26*86.4),"xxxxxxxxxx",N26/O26*86.4) -> xxxxxxxxxx | Q26: =IF(ISERROR(O26/P26*86.4),"xxxxxxxxxx",O26/P26*86.4) -> xxxxxxxxxx | R26: =IF(ISERROR(VLOOKUP(C26,BDDG!$C$2:$W$6,14,FALSE)),"",VLOOKUP(C26,BDDG!$C$2:$W$6,14,FALSE)) -> xxxxxxxxxxxxxxxxxxxxxxxxxxxxxxxxxxxx | S26: xxxxxxxxxx | T26: =IF(ISERROR(R26/S26*86.4),"xxxxxxxxxx",R26/S26*86.4) -> xxxxxxxxxx | U26: =IF(ISERROR(S26/T26*86.4),"xxxxxxxxxx",S26/T26*86.4) -> xxxxxxxxxx | V26: =IF(ISERROR(VLOOKUP(C26,BDDG!$C$2:$W$6,17,FALSE)),"",VLOOKUP(C26,BDDG!$C$2:$W$6,17,FALSE)) -> xxxxxxxxxxxxxxxxxxxxxxxx | W26: xxxxxxxxxx | X26: =IF(ISERROR(V26/W26*86.4),"xxxxxxxxxx",V26/W26*86.4) -> xxxxxxxxxx | Y26: =IF(ISERROR(W26/X26*86.4),"xxxxxxxxxx",W26/X26*86.4) -> xxxxxxxxxx | Z26: =IF(ISERROR(VLOOKUP(C26,BDDG!$C$2:$W$6,20,FALSE)),"",VLOOKUP(C26,BDDG!$C$2:$W$6,20,FALSE)) -> 3 | AA26: =IF(ISERROR(SUM(M26,Q26,U26)),"",SUM(M26,Q26,U26)) -> 15.51724138 | AB26: =MONTH(A:A) -> 12 | AC26: =YEAR(A:A) -> 2015 | AD26: =IFERROR((INDEX($AA$2:AA26,MATCH(H26&MAX(IF($H$1:H25=H26,$A$1:A25)),$H$2:H26&$A$2:A26,0))-AA26)*-1,"") -> -5.302035729 | AE26: =IF(ISERROR(VLOOKUP(C26,BDDG!$C$2:$W$6,21,FALSE)),"",VLOOKUP(C26,BDDG!$C$2:$W$6,21,FALSE)) -> 0
A27: 2015-12-31 | B27: Couvert | C27: 823 | D27: =IF(ISNA(VLOOKUP(C27,BDDG!$C$2:$H$47,2,FALSE)),"",VLOOKUP(C27,BDDG!$C$2:$H$47,2,FALSE)) -> 0 | E27: =IF(ISNA(VLOOKUP(C27,BDDG!$C$3:$P$49,3,FALSE)),"",VLOOKUP(C27,BDDG!$C$3:$P$49,3,FALSE)) -> frites | F27: =IF(ISNA(VLOOKUP(C27,BDDG!$C$3:$P$49,4,FALSE)),"",VLOOKUP(C27,BDDG!$C$3:$P$49,4,FALSE)) -> 104 | G27: =IF(ISNA(VLOOKUP(C27,BDDG!$C$2:$H$47,5,FALSE)),"",VLOOKUP(C27,BDDG!$C$2:$H$47,5,FALSE)) -> noix | H27: =IF(ISNA(VLOOKUP(C27,BDDG!$C$2:$H$47,6,FALSE)),"",VLOOKUP(C27,BDDG!$C$2:$H$47,6,FALSE)) -> rose | I27: =IF(ISERROR(VLOOKUP(C27,BDDG!$C$2:$I$47,7,FALSE)),"",VLOOKUP(C27,BDDG!$C$2:$I$47,7,FALSE)) -> 1 | J27: =IF(ISERROR(VLOOKUP(C27,BDDG!$C$2:$W$6,8,FALSE)),"",VLOOKUP(C27,BDDG!$C$2:$W$6,8,FALSE)) -> rose1 | K27: 12 | L27: 70.4 | M27: =IF(ISERROR(K27/L27*86.4),"xxxxxxxxxx",K27/L27*86.4) -> 14.72727273 | N27: =IF(ISERROR(VLOOKUP(C27,BDDG!$C$2:$W$6,11,FALSE)),"",VLOOKUP(C27,BDDG!$C$2:$W$6,11,FALSE)) -> xxxxxxxxxxxxxxxxxxxxxxxxxxxxxxxxxxxxxxxxxxxxxxx | O27: xxxxxxxxxx | P27: =IF(ISERROR(N27/O27*86.4),"xxxxxxxxxx",N27/O27*86.4) -> xxxxxxxxxx | Q27: =IF(ISERROR(O27/P27*86.4),"xxxxxxxxxx",O27/P27*86.4) -> xxxxxxxxxx | R27: =IF(ISERROR(VLOOKUP(C27,BDDG!$C$2:$W$6,14,FALSE)),"",VLOOKUP(C27,BDDG!$C$2:$W$6,14,FALSE)) -> xxxxxxxxxxxxxxxxxxxxxxxxxxxxxxxxxxxx | S27: xxxxxxxxxx | T27: =IF(ISERROR(R27/S27*86.4),"xxxxxxxxxx",R27/S27*86.4) -> xxxxxxxxxx | U27: =IF(ISERROR(S27/T27*86.4),"xxxxxxxxxx",S27/T27*86.4) -> xxxxxxxxxx | V27: =IF(ISERROR(VLOOKUP(C27,BDDG!$C$2:$W$6,17,FALSE)),"",VLOOKUP(C27,BDDG!$C$2:$W$6,17,FALSE)) -> xxxxxxxxxxxxxxxxxxxxxxxx | W27: xxxxxxxxxx | X27: =IF(ISERROR(V27/W27*86.4),"xxxxxxxxxx",V27/W27*86.4) -> xxxxxxxxxx | Y27: =IF(ISERROR(W27/X27*86.4),"xxxxxxxxxx",W27/X27*86.4) -> xxxxxxxxxx | Z27: =IF(ISERROR(VLOOKUP(C27,BDDG!$C$2:$W$6,20,FALSE)),"",VLOOKUP(C27,BDDG!$C$2:$W$6,20,FALSE)) -> 3 | AA27: =IF(ISERROR(SUM(M27,Q27,U27)),"",SUM(M27,Q27,U27)) -> 14.72727273 | AB27: =MONTH(A:A) -> 12 | AC27: =YEAR(A:A) -> 2015 | AD27: =IFERROR((INDEX($AA$2:AA27,MATCH(H27&MAX(IF($H$1:H26=H27,$A$1:A26)),$H$2:H27&$A$2:A27,0))-AA27)*-1,"") -> -0.789968652 | AE27: =IF(ISERROR(VLOOKUP(C27,BDDG!$C$2:$W$6,21,FALSE)),"",VLOOKUP(C27,BDDG!$C$2:$W$6,21,FALSE)) -> 0
A28: 2016-01-27 | B28: ? | C28: 856 | D28: =IF(ISNA(VLOOKUP(C28,BDDG!$C$2:$H$47,2,FALSE)),"",VLOOKUP(C28,BDDG!$C$2:$H$47,2,FALSE)) -> 0 | E28: =IF(ISNA(VLOOKUP(C28,BDDG!$C$3:$P$49,3,FALSE)),"",VLOOKUP(C28,BDDG!$C$3:$P$49,3,FALSE)) -> pates | F28: =IF(ISNA(VLOOKUP(C28,BDDG!$C$3:$P$49,4,FALSE)),"",VLOOKUP(C28,BDDG!$C$3:$P$49,4,FALSE)) -> 106 | G28: =IF(ISNA(VLOOKUP(C28,BDDG!$C$2:$H$47,5,FALSE)),"",VLOOKUP(C28,BDDG!$C$2:$H$47,5,FALSE)) -> noisettes | H28: =IF(ISNA(VLOOKUP(C28,BDDG!$C$2:$H$47,6,FALSE)),"",VLOOKUP(C28,BDDG!$C$2:$H$47,6,FALSE)) -> iris | I28: =IF(ISERROR(VLOOKUP(C28,BDDG!$C$2:$I$47,7,FALSE)),"",VLOOKUP(C28,BDDG!$C$2:$I$47,7,FALSE)) -> 2 | J28: =IF(ISERROR(VLOOKUP(C28,BDDG!$C$2:$W$6,8,FALSE)),"",VLOOKUP(C28,BDDG!$C$2:$W$6,8,FALSE)) -> iris1 | K28: 12 | L28: 36 | M28: =IF(ISERROR(K28/L28*86.4),"xxxxxxxxxx",K28/L28*86.4) -> 28.8 | N28: =IF(ISERROR(VLOOKUP(C28,BDDG!$C$2:$W$6,11,FALSE)),"",VLOOKUP(C28,BDDG!$C$2:$W$6,11,FALSE)) -> iris2 | O28: 10 | P28: 2.1 | Q28: =IF(ISERROR(O28/P28*86.4),"xxxxxxxxxx",O28/P28*86.4) -> 411.4285714 | R28: =IF(ISERROR(VLOOKUP(C28,BDDG!$C$2:$W$6,14,FALSE)),"",VLOOKUP(C28,BDDG!$C$2:$W$6,14,FALSE)) -> xxxxxxxxxxxxxxxxxxxxxxxxxxxxxxxxxxxx | S28: xxxxxxxxxx | T28: =IF(ISERROR(R28/S28*86.4),"xxxxxxxxxx",R28/S28*86.4) -> xxxxxxxxxx | U28: =IF(ISERROR(S28/T28*86.4),"xxxxxxxxxx",S28/T28*86.4) -> xxxxxxxxxx | V28: =IF(ISERROR(VLOOKUP(C28,BDDG!$C$2:$W$6,17,FALSE)),"",VLOOKUP(C28,BDDG!$C$2:$W$6,17,FALSE)) -> xxxxxxxxxxxxxxxxxxxxxxxx | W28: xxxxxxxxxx | X28: =IF(ISERROR(V28/W28*86.4),"xxxxxxxxxx",V28/W28*86.4) -> xxxxxxxxxx | Y28: =IF(ISERROR(W28/X28*86.4),"xxxxxxxxxx",W28/X28*86.4) -> xxxxxxxxxx | Z28: =IF(ISERROR(VLOOKUP(C28,BDDG!$C$2:$W$6,20,FALSE)),"",VLOOKUP(C28,BDDG!$C$2:$W$6,20,FALSE)) -> xxxxxxxxxx | AA28: =IF(ISERROR(SUM(M28,Q28,U28)),"",SUM(M28,Q28,U28)) -> 440.2285714 | AB28: =MONTH(A:A) -> 1 | AC28: =YEAR(A:A) -> 2016 | AD28: =IFERROR((INDEX($AA$2:AA28,MATCH(H28&MAX(IF($H$1:H27=H28,$A$1:A27)),$H$2:H28&$A$2:A28,0))-AA28)*-1,"") -> 361.5708617 | AE28: =IF(ISERROR(VLOOKUP(C28,BDDG!$C$2:$W$6,21,FALSE)),"",VLOOKUP(C28,BDDG!$C$2:$W$6,21,FALSE)) -> 0
A29: 2016-02-24 | B29: Couvert | C29: 823 | D29: =IF(ISNA(VLOOKUP(C29,BDDG!$C$2:$H$47,2,FALSE)),"",VLOOKUP(C29,BDDG!$C$2:$H$47,2,FALSE)) -> 0 | E29: =IF(ISNA(VLOOKUP(C29,BDDG!$C$3:$P$49,3,FALSE)),"",VLOOKUP(C29,BDDG!$C$3:$P$49,3,FALSE)) -> frites | F29: =IF(ISNA(VLOOKUP(C29,BDDG!$C$3:$P$49,4,FALSE)),"",VLOOKUP(C29,BDDG!$C$3:$P$49,4,FALSE)) -> 104 | G29: =IF(ISNA(VLOOKUP(C29,BDDG!$C$2:$H$47,5,FALSE)),"",VLOOKUP(C29,BDDG!$C$2:$H$47,5,FALSE)) -> noix | H29: =IF(ISNA(VLOOKUP(C29,BDDG!$C$2:$H$47,6,FALSE)),"",VLOOKUP(C29,BDDG!$C$2:$H$47,6,FALSE)) -> rose | I29: =IF(ISERROR(VLOOKUP(C29,BDDG!$C$2:$I$47,7,FALSE)),"",VLOOKUP(C29,BDDG!$C$2:$I$47,7,FALSE)) -> 1 | J29: =IF(ISERROR(VLOOKUP(C29,BDDG!$C$2:$W$6,8,FALSE)),"",VLOOKUP(C29,BDDG!$C$2:$W$6,8,FALSE)) -> rose1 | K29: 12 | L29: 19.13 | M29: =IF(ISERROR(K29/L29*86.4),"xxxxxxxxxx",K29/L29*86.4) -> 54.1975954 | N29: =IF(ISERROR(VLOOKUP(C29,BDDG!$C$2:$W$6,11,FALSE)),"",VLOOKUP(C29,BDDG!$C$2:$W$6,11,FALSE)) -> xxxxxxxxxxxxxxxxxxxxxxxxxxxxxxxxxxxxxxxxxxxxxxx | O29: xxxxxxxxxx | P29: =IF(ISERROR(N29/O29*86.4),"xxxxxxxxxx",N29/O29*86.4) -> xxxxxxxxxx | Q29: =IF(ISERROR(O29/P29*86.4),"xxxxxxxxxx",O29/P29*86.4) -> xxxxxxxxxx | R29: =IF(ISERROR(VLOOKUP(C29,BDDG!$C$2:$W$6,14,FALSE)),"",VLOOKUP(C29,BDDG!$C$2:$W$6,14,FALSE)) -> xxxxxxxxxxxxxxxxxxxxxxxxxxxxxxxxxxxx | S29: xxxxxxxxxx | T29: =IF(ISERROR(R29/S29*86.4),"xxxxxxxxxx",R29/S29*86.4) -> xxxxxxxxxx | U29: =IF(ISERROR(S29/T29*86.4),"xxxxxxxxxx",S29/T29*86.4) -> xxxxxxxxxx | V29: =IF(ISERROR(VLOOKUP(C29,BDDG!$C$2:$W$6,17,FALSE)),"",VLOOKUP(C29,BDDG!$C$2:$W$6,17,FALSE)) -> xxxxxxxxxxxxxxxxxxxxxxxx | W29: xxxxxxxxxx | X29: =IF(ISERROR(V29/W29*86.4),"xxxxxxxxxx",V29/W29*86.4) -> xxxxxxxxxx | Y29: =IF(ISERROR(W29/X29*86.4),"xxxxxxxxxx",W29/X29*86.4) -> xxxxxxxxxx | Z29: =IF(ISERROR(VLOOKUP(C29,BDDG!$C$2:$W$6,20,FALSE)),"",VLOOKUP(C29,BDDG!$C$2:$W$6,20,FALSE)) -> 3 | AA29: =IF(ISERROR(SUM(M29,Q29,U29)),"",SUM(M29,Q29,U29)) -> 54.1975954 | AB29: =MONTH(A:A) -> 2 | AC29: =YEAR(A:A) -> 2016 | AD29: =IFERROR((INDEX($AA$2:AA29,MATCH(H29&MAX(IF($H$1:H28=H29,$A$1:A28)),$H$2:H29&$A$2:A29,0))-AA29)*-1,"") -> 39.47032267 | AE29: =IF(ISERROR(VLOOKUP(C29,BDDG!$C$2:$W$6,21,FALSE)),"",VLOOKUP(C29,BDDG!$C$2:$W$6,21,FALSE)) -> 0
A30: 2016-03-01 | B30: Froid | C30: 856 | D30: =IF(ISNA(VLOOKUP(C30,BDDG!$C$2:$H$47,2,FALSE)),"",VLOOKUP(C30,BDDG!$C$2:$H$47,2,FALSE)) -> 0 | E30: =IF(ISNA(VLOOKUP(C30,BDDG!$C$3:$P$49,3,FALSE)),"",VLOOKUP(C30,BDDG!$C$3:$P$49,3,FALSE)) -> pates | F30: =IF(ISNA(VLOOKUP(C30,BDDG!$C$3:$P$49,4,FALSE)),"",VLOOKUP(C30,BDDG!$C$3:$P$49,4,FALSE)) -> 106 | G30: =IF(ISNA(VLOOKUP(C30,BDDG!$C$2:$H$47,5,FALSE)),"",VLOOKUP(C30,BDDG!$C$2:$H$47,5,FALSE)) -> noisettes | H30: =IF(ISNA(VLOOKUP(C30,BDDG!$C$2:$H$47,6,FALSE)),"",VLOOKUP(C30,BDDG!$C$2:$H$47,6,FALSE)) -> iris | I30: =IF(ISERROR(VLOOKUP(C30,BDDG!$C$2:$I$47,7,FALSE)),"",VLOOKUP(C30,BDDG!$C$2:$I$47,7,FALSE)) -> 2 | J30: =IF(ISERROR(VLOOKUP(C30,BDDG!$C$2:$W$6,8,FALSE)),"",VLOOKUP(C30,BDDG!$C$2:$W$6,8,FALSE)) -> iris1 | K30: 12 | L30: 14.72 | M30: =IF(ISERROR(K30/L30*86.4),"xxxxxxxxxx",K30/L30*86.4) -> 70.43478261 | N30: =IF(ISERROR(VLOOKUP(C30,BDDG!$C$2:$W$6,11,FALSE)),"",VLOOKUP(C30,BDDG!$C$2:$W$6,11,FALSE)) -> iris2 | O30: 12 | P30: 1.48 | Q30: =IF(ISERROR(O30/P30*86.4),"xxxxxxxxxx",O30/P30*86.4) -> 700.5405405 | R30: =IF(ISERROR(VLOOKUP(C30,BDDG!$C$2:$W$6,14,FALSE)),"",VLOOKUP(C30,BDDG!$C$2:$W$6,14,FALSE)) -> xxxxxxxxxxxxxxxxxxxxxxxxxxxxxxxxxxxx | S30: xxxxxxxxxx | T30: =IF(ISERROR(R30/S30*86.4),"xxxxxxxxxx",R30/S30*86.4) -> xxxxxxxxxx | U30: =IF(ISERROR(S30/T30*86.4),"xxxxxxxxxx",S30/T30*86.4) -> xxxxxxxxxx | V30: =IF(ISERROR(VLOOKUP(C30,BDDG!$C$2:$W$6,17,FALSE)),"",VLOOKUP(C30,BDDG!$C$2:$W$6,17,FALSE)) -> xxxxxxxxxxxxxxxxxxxxxxxx | W30: xxxxxxxxxx | X30: =IF(ISERROR(V30/W30*86.4),"xxxxxxxxxx",V30/W30*86.4) -> xxxxxxxxxx | Y30: =IF(ISERROR(W30/X30*86.4),"xxxxxxxxxx",W30/X30*86.4) -> xxxxxxxxxx | Z30: =IF(ISERROR(VLOOKUP(C30,BDDG!$C$2:$W$6,20,FALSE)),"",VLOOKUP(C30,BDDG!$C$2:$W$6,20,FALSE)) -> xxxxxxxxxx | AA30: =IF(ISERROR(SUM(M30,Q30,U30)),"",SUM(M30,Q30,U30)) -> 770.9753231 | AB30: =MONTH(A:A) -> 3 | AC30: =YEAR(A:A) -> 2016 | AD30: =IFERROR((INDEX($AA$2:AA30,MATCH(H30&MAX(IF($H$1:H29=H30,$A$1:A29)),$H$2:H30&$A$2:A30,0))-AA30)*-1,"") -> 330.7467517 | AE30: =IF(ISERROR(VLOOKUP(C30,BDDG!$C$2:$W$6,21,FALSE)),"",VLOOKUP(C30,BDDG!$C$2:$W$6,21,FALSE)) -> 0
A31: 2016-05-10 | B31: Soleil | C31: 856 | D31: =IF(ISNA(VLOOKUP(C31,BDDG!$C$2:$H$47,2,FALSE)),"",VLOOKUP(C31,BDDG!$C$2:$H$47,2,FALSE)) -> 0 | E31: =IF(ISNA(VLOOKUP(C31,BDDG!$C$3:$P$49,3,FALSE)),"",VLOOKUP(C31,BDDG!$C$3:$P$49,3,FALSE)) -> pates | F31: =IF(ISNA(VLOOKUP(C31,BDDG!$C$3:$P$49,4,FALSE)),"",VLOOKUP(C31,BDDG!$C$3:$P$49,4,FALSE)) -> 106 | G31: =IF(ISNA(VLOOKUP(C31,BDDG!$C$2:$H$47,5,FALSE)),"",VLOOKUP(C31,BDDG!$C$2:$H$47,5,FALSE)) -> noisettes | H31: =IF(ISNA(VLOOKUP(C31,BDDG!$C$2:$H$47,6,FALSE)),"",VLOOKUP(C31,BDDG!$C$2:$H$47,6,FALSE)) -> iris | I31: =IF(ISERROR(VLOOKUP(C31,BDDG!$C$2:$I$47,7,FALSE)),"",VLOOKUP(C31,BDDG!$C$2:$I$47,7,FALSE)) -> 2 | J31: =IF(ISERROR(VLOOKUP(C31,BDDG!$C$2:$W$6,8,FALSE)),"",VLOOKUP(C31,BDDG!$C$2:$W$6,8,FALSE)) -> iris1 | K31: 12 | L31: 33.47 | M31: =IF(ISERROR(K31/L31*86.4),"xxxxxxxxxx",K31/L31*86.4) -> 30.97699432 | N31: =IF(ISERROR(VLOOKUP(C31,BDDG!$C$2:$W$6,11,FALSE)),"",VLOOKUP(C31,BDDG!$C$2:$W$6,11,FALSE)) -> iris2 | O31: 12 | P31: 2.81 | Q31: =IF(ISERROR(O31/P31*86.4),"xxxxxxxxxx",O31/P31*86.4) -> 368.9679715 | R31: =IF(ISERROR(VLOOKUP(C31,BDDG!$C$2:$W$6,14,FALSE)),"",VLOOKUP(C31,BDDG!$C$2:$W$6,14,FALSE)) -> xxxxxxxxxxxxxxxxxxxxxxxxxxxxxxxxxxxx | S31: xxxxxxxxxx | T31: =IF(ISERROR(R31/S31*86.4),"xxxxxxxxxx",R31/S31*86.4) -> xxxxxxxxxx | U31: =IF(ISERROR(S31/T31*86.4),"xxxxxxxxxx",S31/T31*86.4) -> xxxxxxxxxx | V31: =IF(ISERROR(VLOOKUP(C31,BDDG!$C$2:$W$6,17,FALSE)),"",VLOOKUP(C31,BDDG!$C$2:$W$6,17,FALSE)) -> xxxxxxxxxxxxxxxxxxxxxxxx | W31: xxxxxxxxxx | X31: =IF(ISERROR(V31/W31*86.4),"xxxxxxxxxx",V31/W31*86.4) -> xxxxxxxxxx | Y31: =IF(ISERROR(W31/X31*86.4),"xxxxxxxxxx",W31/X31*86.4) -> xxxxxxxxxx | Z31: =IF(ISERROR(VLOOKUP(C31,BDDG!$C$2:$W$6,20,FALSE)),"",VLOOKUP(C31,BDDG!$C$2:$W$6,20,FALSE)) -> xxxxxxxxxx | AA31: =IF(ISERROR(SUM(M31,Q31,U31)),"",SUM(M31,Q31,U31)) -> 399.9449659 | AB31: =MONTH(A:A) -> 5 | AC31: =YEAR(A:A) -> 2016 | AD31: =IFERROR((INDEX($AA$2:AA31,MATCH(H31&MAX(IF($H$1:H30=H31,$A$1:A30)),$H$2:H31&$A$2:A31,0))-AA31)*-1,"") -> -371.0303573 | AE31: =IF(ISERROR(VLOOKUP(C31,BDDG!$C$2:$W$6,21,FALSE)),"",VLOOKUP(C31,BDDG!$C$2:$W$6,21,FALSE)) -> 0
A32: 2016-05-13 | B32: Pluie | C32: 823 | D32: =IF(ISNA(VLOOKUP(C32,BDDG!$C$2:$H$47,2,FALSE)),"",VLOOKUP(C32,BDDG!$C$2:$H$47,2,FALSE)) -> 0 | E32: =IF(ISNA(VLOOKUP(C32,BDDG!$C$3:$P$49,3,FALSE)),"",VLOOKUP(C32,BDDG!$C$3:$P$49,3,FALSE)) -> frites | F32: =IF(ISNA(VLOOKUP(C32,BDDG!$C$3:$P$49,4,FALSE)),"",VLOOKUP(C32,BDDG!$C$3:$P$49,4,FALSE)) -> 104 | G32: =IF(ISNA(VLOOKUP(C32,BDDG!$C$2:$H$47,5,FALSE)),"",VLOOKUP(C32,BDDG!$C$2:$H$47,5,FALSE)) -> noix | H32: =IF(ISNA(VLOOKUP(C32,BDDG!$C$2:$H$47,6,FALSE)),"",VLOOKUP(C32,BDDG!$C$2:$H$47,6,FALSE)) -> rose | I32: =IF(ISERROR(VLOOKUP(C32,BDDG!$C$2:$I$47,7,FALSE)),"",VLOOKUP(C32,BDDG!$C$2:$I$47,7,FALSE)) -> 1 | J32: =IF(ISERROR(VLOOKUP(C32,BDDG!$C$2:$W$6,8,FALSE)),"",VLOOKUP(C32,BDDG!$C$2:$W$6,8,FALSE)) -> rose1 | K32: 12 | L32: 15.34 | M32: =IF(ISERROR(K32/L32*86.4),"xxxxxxxxxx",K32/L32*86.4) -> 67.58800522 | N32: =IF(ISERROR(VLOOKUP(C32,BDDG!$C$2:$W$6,11,FALSE)),"",VLOOKUP(C32,BDDG!$C$2:$W$6,11,FALSE)) -> xxxxxxxxxxxxxxxxxxxxxxxxxxxxxxxxxxxxxxxxxxxxxxx | O32: xxxxxxxxxx | P32: =IF(ISERROR(N32/O32*86.4),"xxxxxxxxxx",N32/O32*86.4) -> xxxxxxxxxx | Q32: =IF(ISERROR(O32/P32*86.4),"xxxxxxxxxx",O32/P32*86.4) -> xxxxxxxxxx | R32: =IF(ISERROR(VLOOKUP(C32,BDDG!$C$2:$W$6,14,FALSE)),"",VLOOKUP(C32,BDDG!$C$2:$W$6,14,FALSE)) -> xxxxxxxxxxxxxxxxxxxxxxxxxxxxxxxxxxxx | S32: xxxxxxxxxx | T32: =IF(ISERROR(R32/S32*86.4),"xxxxxxxxxx",R32/S32*86.4) -> xxxxxxxxxx | U32: =IF(ISERROR(S32/T32*86.4),"xxxxxxxxxx",S32/T32*86.4) -> xxxxxxxxxx | V32: =IF(ISERROR(VLOOKUP(C32,BDDG!$C$2:$W$6,17,FALSE)),"",VLOOKUP(C32,BDDG!$C$2:$W$6,17,FALSE)) -> xxxxxxxxxxxxxxxxxxxxxxxx | W32: xxxxxxxxxx | X32: =IF(ISERROR(V32/W32*86.4),"xxxxxxxxxx",V32/W32*86.4) -> xxxxxxxxxx | Y32: =IF(ISERROR(W32/X32*86.4),"xxxxxxxxxx",W32/X32*86.4) -> xxxxxxxxxx | Z32: =IF(ISERROR(VLOOKUP(C32,BDDG!$C$2:$W$6,20,FALSE)),"",VLOOKUP(C32,BDDG!$C$2:$W$6,20,FALSE)) -> 3 | AA32: =IF(ISERROR(SUM(M32,Q32,U32)),"",SUM(M32,Q32,U32)) -> 67.58800522 | AB32: =MONTH(A:A) -> 5 | AC32: =YEAR(A:A) -> 2016 | AD32: =IFERROR((INDEX($AA$2:AA32,MATCH(H32&MAX(IF($H$1:H31=H32,$A$1:A31)),$H$2:H32&$A$2:A32,0))-AA32)*-1,"") -> 13.39040982 | AE32: =IF(ISERROR(VLOOKUP(C32,BDDG!$C$2:$W$6,21,FALSE)),"",VLOOKUP(C32,BDDG!$C$2:$W$6,21,FALSE)) -> 0
A33: 2016-07-01 | B33: Soleil | C33: 823 | D33: =IF(ISNA(VLOOKUP(C33,BDDG!$C$2:$H$47,2,FALSE)),"",VLOOKUP(C33,BDDG!$C$2:$H$47,2,FALSE)) -> 0 | E33: =IF(ISNA(VLOOKUP(C33,BDDG!$C$3:$P$49,3,FALSE)),"",VLOOKUP(C33,BDDG!$C$3:$P$49,3,FALSE)) -> frites | F33: =IF(ISNA(VLOOKUP(C33,BDDG!$C$3:$P$49,4,FALSE)),"",VLOOKUP(C33,BDDG!$C$3:$P$49,4,FALSE)) -> 104 | G33: =IF(ISNA(VLOOKUP(C33,BDDG!$C$2:$H$47,5,FALSE)),"",VLOOKUP(C33,BDDG!$C$2:$H$47,5,FALSE)) -> noix | H33: =IF(ISNA(VLOOKUP(C33,BDDG!$C$2:$H$47,6,FALSE)),"",VLOOKUP(C33,BDDG!$C$2:$H$47,6,FALSE)) -> rose | I33: =IF(ISERROR(VLOOKUP(C33,BDDG!$C$2:$I$47,7,FALSE)),"",VLOOKUP(C33,BDDG!$C$2:$I$47,7,FALSE)) -> 1 | J33: =IF(ISERROR(VLOOKUP(C33,BDDG!$C$2:$W$6,8,FALSE)),"",VLOOKUP(C33,BDDG!$C$2:$W$6,8,FALSE)) -> rose1 | K33: 12 | L33: 15.47 | M33: =IF(ISERROR(K33/L33*86.4),"xxxxxxxxxx",K33/L33*86.4) -> 67.02003878 | N33: =IF(ISERROR(VLOOKUP(C33,BDDG!$C$2:$W$6,11,FALSE)),"",VLOOKUP(C33,BDDG!$C$2:$W$6,11,FALSE)) -> xxxxxxxxxxxxxxxxxxxxxxxxxxxxxxxxxxxxxxxxxxxxxxx | O33: xxxxxxxxxx | P33: =IF(ISERROR(N33/O33*86.4),"xxxxxxxxxx",N33/O33*86.4) -> xxxxxxxxxx | Q33: =IF(ISERROR(O33/P33*86.4),"xxxxxxxxxx",O33/P33*86.4) -> xxxxxxxxxx | R33: =IF(ISERROR(VLOOKUP(C33,BDDG!$C$2:$W$6,14,FALSE)),"",VLOOKUP(C33,BDDG!$C$2:$W$6,14,FALSE)) -> xxxxxxxxxxxxxxxxxxxxxxxxxxxxxxxxxxxx | S33: xxxxxxxxxx | T33: =IF(ISERROR(R33/S33*86.4),"xxxxxxxxxx",R33/S33*86.4) -> xxxxxxxxxx | U33: =IF(ISERROR(S33/T33*86.4),"xxxxxxxxxx",S33/T33*86.4) -> xxxxxxxxxx | V33: =IF(ISERROR(VLOOKUP(C33,BDDG!$C$2:$W$6,17,FALSE)),"",VLOOKUP(C33,BDDG!$C$2:$W$6,17,FALSE)) -> xxxxxxxxxxxxxxxxxxxxxxxx | W33: xxxxxxxxxx | X33: =IF(ISERROR(V33/W33*86.4),"xxxxxxxxxx",V33/W33*86.4) -> xxxxxxxxxx | Y33: =IF(ISERROR(W33/X33*86.4),"xxxxxxxxxx",W33/X33*86.4) -> xxxxxxxxxx | Z33: =IF(ISERROR(VLOOKUP(C33,BDDG!$C$2:$W$6,20,FALSE)),"",VLOOKUP(C33,BDDG!$C$2:$W$6,20,FALSE)) -> 3 | AA33: =IF(ISERROR(SUM(M33,Q33,U33)),"",SUM(M33,Q33,U33)) -> 67.02003878 | AB33: =MONTH(A:A) -> 7 | AC33: =YEAR(A:A) -> 2016 | AD33: =IFERROR((INDEX($AA$2:AA33,MATCH(H33&MAX(IF($H$1:H32=H33,$A$1:A32)),$H$2:H33&$A$2:A33,0))-AA33)*-1,"") -> -0.5679664304 | AE33: =IF(ISERROR(VLOOKUP(C33,BDDG!$C$2:$W$6,21,FALSE)),"",VLOOKUP(C33,BDDG!$C$2:$W$6,21,FALSE)) -> 0
A34: 2016-07-05 | B34: Soleil | C34: 856 | D34: =IF(ISNA(VLOOKUP(C34,BDDG!$C$2:$H$47,2,FALSE)),"",VLOOKUP(C34,BDDG!$C$2:$H$47,2,FALSE)) -> 0 | E34: =IF(ISNA(VLOOKUP(C34,BDDG!$C$3:$P$49,3,FALSE)),"",VLOOKUP(C34,BDDG!$C$3:$P$49,3,FALSE)) -> pates | F34: =IF(ISNA(VLOOKUP(C34,BDDG!$C$3:$P$49,4,FALSE)),"",VLOOKUP(C34,BDDG!$C$3:$P$49,4,FALSE)) -> 106 | G34: =IF(ISNA(VLOOKUP(C34,BDDG!$C$2:$H$47,5,FALSE)),"",VLOOKUP(C34,BDDG!$C$2:$H$47,5,FALSE)) -> noisettes | H34: =IF(ISNA(VLOOKUP(C34,BDDG!$C$2:$H$47,6,FALSE)),"",VLOOKUP(C34,BDDG!$C$2:$H$47,6,FALSE)) -> iris | I34: =IF(ISERROR(VLOOKUP(C34,BDDG!$C$2:$I$47,7,FALSE)),"",VLOOKUP(C34,BDDG!$C$2:$I$47,7,FALSE)) -> 2 | J34: =IF(ISERROR(VLOOKUP(C34,BDDG!$C$2:$W$6,8,FALSE)),"",VLOOKUP(C34,BDDG!$C$2:$W$6,8,FALSE)) -> iris1 | K34: 12 | L34: 42.35 | M34: =IF(ISERROR(K34/L34*86.4),"xxxxxxxxxx",K34/L34*86.4) -> 24.48170012 | N34: =IF(ISERROR(VLOOKUP(C34,BDDG!$C$2:$W$6,11,FALSE)),"",VLOOKUP(C34,BDDG!$C$2:$W$6,11,FALSE)) -> iris2 | O34: 12 | P34: 3.12 | Q34: =IF(ISERROR(O34/P34*86.4),"xxxxxxxxxx",O34/P34*86.4) -> 332.3076923 | R34: =IF(ISERROR(VLOOKUP(C34,BDDG!$C$2:$W$6,14,FALSE)),"",VLOOKUP(C34,BDDG!$C$2:$W$6,14,FALSE)) -> xxxxxxxxxxxxxxxxxxxxxxxxxxxxxxxxxxxx | S34: xxxxxxxxxx | T34: =IF(ISERROR(R34/S34*86.4),"xxxxxxxxxx",R34/S34*86.4) -> xxxxxxxxxx | U34: =IF(ISERROR(S34/T34*86.4),"xxxxxxxxxx",S34/T34*86.4) -> xxxxxxxxxx | V34: =IF(ISERROR(VLOOKUP(C34,BDDG!$C$2:$W$6,17,FALSE)),"",VLOOKUP(C34,BDDG!$C$2:$W$6,17,FALSE)) -> xxxxxxxxxxxxxxxxxxxxxxxx | W34: xxxxxxxxxx | X34: =IF(ISERROR(V34/W34*86.4),"xxxxxxxxxx",V34/W34*86.4) -> xxxxxxxxxx | Y34: =IF(ISERROR(W34/X34*86.4),"xxxxxxxxxx",W34/X34*86.4) -> xxxxxxxxxx | Z34: =IF(ISERROR(VLOOKUP(C34,BDDG!$C$2:$W$6,20,FALSE)),"",VLOOKUP(C34,BDDG!$C$2:$W$6,20,FALSE)) -> xxxxxxxxxx | AA34: =IF(ISERROR(SUM(M34,Q34,U34)),"",SUM(M34,Q34,U34)) -> 356.7893924 | AB34: =MONTH(A:A) -> 7 | AC34: =YEAR(A:A) -> 2016 | AD34: =IFERROR((INDEX($AA$2:AA34,MATCH(H34&MAX(IF($H$1:H33=H34,$A$1:A33)),$H$2:H34&$A$2:A34,0))-AA34)*-1,"") -> -43.15557343 | AE34: =IF(ISERROR(VLOOKUP(C34,BDDG!$C$2:$W$6,21,FALSE)),"",VLOOKUP(C34,BDDG!$C$2:$W$6,21,FALSE)) -> 0
A35: 2016-08-03 | B35: Soleil | C35: 856 | D35: =IF(ISNA(VLOOKUP(C35,BDDG!$C$2:$H$47,2,FALSE)),"",VLOOKUP(C35,BDDG!$C$2:$H$47,2,FALSE)) -> 0 | E35: =IF(ISNA(VLOOKUP(C35,BDDG!$C$3:$P$49,3,FALSE)),"",VLOOKUP(C35,BDDG!$C$3:$P$49,3,FALSE)) -> pates | F35: =IF(ISNA(VLOOKUP(C35,BDDG!$C$3:$P$49,4,FALSE)),"",VLOOKUP(C35,BDDG!$C$3:$P$49,4,FALSE)) -> 106 | G35: =IF(ISNA(VLOOKUP(C35,BDDG!$C$2:$H$47,5,FALSE)),"",VLOOKUP(C35,BDDG!$C$2:$H$47,5,FALSE)) -> noisettes | H35: =IF(ISNA(VLOOKUP(C35,BDDG!$C$2:$H$47,6,FALSE)),"",VLOOKUP(C35,BDDG!$C$2:$H$47,6,FALSE)) -> iris | I35: =IF(ISERROR(VLOOKUP(C35,BDDG!$C$2:$I$47,7,FALSE)),"",VLOOKUP(C35,BDDG!$C$2:$I$47,7,FALSE)) -> 2 | J35: =IF(ISERROR(VLOOKUP(C35,BDDG!$C$2:$W$6,8,FALSE)),"",VLOOKUP(C35,BDDG!$C$2:$W$6,8,FALSE)) -> iris1 | K35: 5 | L35: 34.69 | M35: =IF(ISERROR(K35/L35*86.4),"xxxxxxxxxx",K35/L35*86.4) -> 12.45315653 | N35: =IF(ISERROR(VLOOKUP(C35,BDDG!$C$2:$W$6,11,FALSE)),"",VLOOKUP(C35,BDDG!$C$2:$W$6,11,FALSE)) -> iris2 | O35: 12 | P35: 6.59 | Q35: =IF(ISERROR(O35/P35*86.4),"xxxxxxxxxx",O35/P35*86.4) -> 157.3292868 | R35: =IF(ISERROR(VLOOKUP(C35,BDDG!$C$2:$W$6,14,FALSE)),"",VLOOKUP(C35,BDDG!$C$2:$W$6,14,FALSE)) -> xxxxxxxxxxxxxxxxxxxxxxxxxxxxxxxxxxxx | S35: xxxxxxxxxx | T35: =IF(ISERROR(R35/S35*86.4),"xxxxxxxxxx",R35/S35*86.4) -> xxxxxxxxxx | U35: =IF(ISERROR(S35/T35*86.4),"xxxxxxxxxx",S35/T35*86.4) -> xxxxxxxxxx | V35: =IF(ISERROR(VLOOKUP(C35,BDDG!$C$2:$W$6,17,FALSE)),"",VLOOKUP(C35,BDDG!$C$2:$W$6,17,FALSE)) -> xxxxxxxxxxxxxxxxxxxxxxxx | W35: xxxxxxxxxx | X35: =IF(ISERROR(V35/W35*86.4),"xxxxxxxxxx",V35/W35*86.4) -> xxxxxxxxxx | Y35: =IF(ISERROR(W35/X35*86.4),"xxxxxxxxxx",W35/X35*86.4) -> xxxxxxxxxx | Z35: =IF(ISERROR(VLOOKUP(C35,BDDG!$C$2:$W$6,20,FALSE)),"",VLOOKUP(C35,BDDG!$C$2:$W$6,20,FALSE)) -> xxxxxxxxxx | AA35: =IF(ISERROR(SUM(M35,Q35,U35)),"",SUM(M35,Q35,U35)) -> 169.7824433 | AB35: =MONTH(A:A) -> 8 | AC35: =YEAR(A:A) -> 2016 | AD35: =IFERROR((INDEX($AA$2:AA35,MATCH(H35&MAX(IF($H$1:H34=H35,$A$1:A34)),$H$2:H35&$A$2:A35,0))-AA35)*-1,"") -> -187.0069491 | AE35: =IF(ISERROR(VLOOKUP(C35,BDDG!$C$2:$W$6,21,FALSE)),"",VLOOKUP(C35,BDDG!$C$2:$W$6,21,FALSE)) -> 0
A36: 2016-08-05 | B36: Couvert | C36: 823 | D36: =IF(ISNA(VLOOKUP(C36,BDDG!$C$2:$H$47,2,FALSE)),"",VLOOKUP(C36,BDDG!$C$2:$H$47,2,FALSE)) -> 0 | E36: =IF(ISNA(VLOOKUP(C36,BDDG!$C$3:$P$49,3,FALSE)),"",VLOOKUP(C36,BDDG!$C$3:$P$49,3,FALSE)) -> frites | F36: =IF(ISNA(VLOOKUP(C36,BDDG!$C$3:$P$49,4,FALSE)),"",VLOOKUP(C36,BDDG!$C$3:$P$49,4,FALSE)) -> 104 | G36: =IF(ISNA(VLOOKUP(C36,BDDG!$C$2:$H$47,5,FALSE)),"",VLOOKUP(C36,BDDG!$C$2:$H$47,5,FALSE)) -> noix | H36: =IF(ISNA(VLOOKUP(C36,BDDG!$C$2:$H$47,6,FALSE)),"",VLOOKUP(C36,BDDG!$C$2:$H$47,6,FALSE)) -> rose | I36: =IF(ISERROR(VLOOKUP(C36,BDDG!$C$2:$I$47,7,FALSE)),"",VLOOKUP(C36,BDDG!$C$2:$I$47,7,FALSE)) -> 1 | J36: =IF(ISERROR(VLOOKUP(C36,BDDG!$C$2:$W$6,8,FALSE)),"",VLOOKUP(C36,BDDG!$C$2:$W$6,8,FALSE)) -> rose1 | K36: 12 | L36: 40.22 | M36: =IF(ISERROR(K36/L36*86.4),"xxxxxxxxxx",K36/L36*86.4) -> 25.77821979 | N36: =IF(ISERROR(VLOOKUP(C36,BDDG!$C$2:$W$6,11,FALSE)),"",VLOOKUP(C36,BDDG!$C$2:$W$6,11,FALSE)) -> xxxxxxxxxxxxxxxxxxxxxxxxxxxxxxxxxxxxxxxxxxxxxxx | O36: xxxxxxxxxx | P36: =IF(ISERROR(N36/O36*86.4),"xxxxxxxxxx",N36/O36*86.4) -> xxxxxxxxxx | Q36: =IF(ISERROR(O36/P36*86.4),"xxxxxxxxxx",O36/P36*86.4) -> xxxxxxxxxx | R36: =IF(ISERROR(VLOOKUP(C36,BDDG!$C$2:$W$6,14,FALSE)),"",VLOOKUP(C36,BDDG!$C$2:$W$6,14,FALSE)) -> xxxxxxxxxxxxxxxxxxxxxxxxxxxxxxxxxxxx | S36: xxxxxxxxxx | T36: =IF(ISERROR(R36/S36*86.4),"xxxxxxxxxx",R36/S36*86.4) -> xxxxxxxxxx | U36: =IF(ISERROR(S36/T36*86.4),"xxxxxxxxxx",S36/T36*86.4) -> xxxxxxxxxx | V36: =IF(ISERROR(VLOOKUP(C36,BDDG!$C$2:$W$6,17,FALSE)),"",VLOOKUP(C36,BDDG!$C$2:$W$6,17,FALSE)) -> xxxxxxxxxxxxxxxxxxxxxxxx | W36: xxxxxxxxxx | X36: =IF(ISERROR(V36/W36*86.4),"xxxxxxxxxx",V36/W36*86.4) -> xxxxxxxxxx | Y36: =IF(ISERROR(W36/X36*86.4),"xxxxxxxxxx",W36/X36*86.4) -> xxxxxxxxxx | Z36: =IF(ISERROR(VLOOKUP(C36,BDDG!$C$2:$W$6,20,FALSE)),"",VLOOKUP(C36,BDDG!$C$2:$W$6,20,FALSE)) -> 3 | AA36: =IF(ISERROR(SUM(M36,Q36,U36,Y29)),"",SUM(M36,Q36,U36,Y29)) -> 25.77821979 | AB36: =MONTH(A:A) -> 8 | AC36: =YEAR(A:A) -> 2016 | AD36: =IFERROR((INDEX($AA$2:AA36,MATCH(H36&MAX(IF($H$1:H35=H36,$A$1:A35)),$H$2:H36&$A$2:A36,0))-AA36)*-1,"") -> -41.24181899 | AE36: =IF(ISERROR(VLOOKUP(C36,BDDG!$C$2:$W$6,21,FALSE)),"",VLOOKUP(C36,BDDG!$C$2:$W$6,21,FALSE)) -> 0
A37: 2016-08-26 | B37: Sécheresse | C37: 823 | D37: =IF(ISNA(VLOOKUP(C37,BDDG!$C$2:$H$47,2,FALSE)),"",VLOOKUP(C37,BDDG!$C$2:$H$47,2,FALSE)) -> 0 | E37: =IF(ISNA(VLOOKUP(C37,BDDG!$C$3:$P$49,3,FALSE)),"",VLOOKUP(C37,BDDG!$C$3:$P$49,3,FALSE)) -> frites | F37: =IF(ISNA(VLOOKUP(C37,BDDG!$C$3:$P$49,4,FALSE)),"",VLOOKUP(C37,BDDG!$C$3:$P$49,4,FALSE)) -> 104 | G37: =IF(ISNA(VLOOKUP(C37,BDDG!$C$2:$H$47,5,FALSE)),"",VLOOKUP(C37,BDDG!$C$2:$H$47,5,FALSE)) -> noix | H37: =IF(ISNA(VLOOKUP(C37,BDDG!$C$2:$H$47,6,FALSE)),"",VLOOKUP(C37,BDDG!$C$2:$H$47,6,FALSE)) -> rose | I37: =IF(ISERROR(VLOOKUP(C37,BDDG!$C$2:$I$47,7,FALSE)),"",VLOOKUP(C37,BDDG!$C$2:$I$47,7,FALSE)) -> 1 | J37: =IF(ISERROR(VLOOKUP(C37,BDDG!$C$2:$W$6,8,FALSE)),"",VLOOKUP(C37,BDDG!$C$2:$W$6,8,FALSE)) -> rose1 | K37: 12 | L37: 48 | M37: =IF(ISERROR(K37/L37*86.4),"xxxxxxxxxx",K37/L37*86.4) -> 21.6 | N37: =IF(ISERROR(VLOOKUP(C37,BDDG!$C$2:$W$6,11,FALSE)),"",VLOOKUP(C37,BDDG!$C$2:$W$6,11,FALSE)) -> xxxxxxxxxxxxxxxxxxxxxxxxxxxxxxxxxxxxxxxxxxxxxxx | O37: xxxxxxxxxx | P37: =IF(ISERROR(N37/O37*86.4),"xxxxxxxxxx",N37/O37*86.4) -> xxxxxxxxxx | Q37: =IF(ISERROR(O37/P37*86.4),"xxxxxxxxxx",O37/P37*86.4) -> xxxxxxxxxx | R37: =IF(ISERROR(VLOOKUP(C37,BDDG!$C$2:$W$6,14,FALSE)),"",VLOOKUP(C37,BDDG!$C$2:$W$6,14,FALSE)) -> xxxxxxxxxxxxxxxxxxxxxxxxxxxxxxxxxxxx | S37: xxxxxxxxxx | T37: =IF(ISERROR(R37/S37*86.4),"xxxxxxxxxx",R37/S37*86.4) -> xxxxxxxxxx | U37: =IF(ISERROR(S37/T37*86.4),"xxxxxxxxxx",S37/T37*86.4) -> xxxxxxxxxx | V37: =IF(ISERROR(VLOOKUP(C37,BDDG!$C$2:$W$6,17,FALSE)),"",VLOOKUP(C37,BDDG!$C$2:$W$6,17,FALSE)) -> xxxxxxxxxxxxxxxxxxxxxxxx | W37: xxxxxxxxxx | X37: =IF(ISERROR(V37/W37*86.4),"xxxxxxxxxx",V37/W37*86.4) -> xxxxxxxxxx | Y37: =IF(ISERROR(W37/X37*86.4),"xxxxxxxxxx",W37/X37*86.4) -> xxxxxxxxxx | Z37: =IF(ISERROR(VLOOKUP(C37,BDDG!$C$2:$W$6,20,FALSE)),"",VLOOKUP(C37,BDDG!$C$2:$W$6,20,FALSE)) -> 3 | AA37: =IF(ISERROR(SUM(M37,Q37,U37,Y30)),"",SUM(M37,Q37,U37,Y30)) -> 21.6 | AB37: =MONTH(A:A) -> 8 | AC37: =YEAR(A:A) -> 2016 | AD37: =IFERROR((INDEX($AA$2:AA37,MATCH(H37&MAX(IF($H$1:H36=H37,$A$1:A36)),$H$2:H37&$A$2:A37,0))-AA37)*-1,"") -> -4.178219791 | AE37: =IF(ISERROR(VLOOKUP(C37,BDDG!$C$2:$W$6,21,FALSE)),"",VLOOKUP(C37,BDDG!$C$2:$W$6,21,FALSE)) -> 0
A38: 2016-08-31 | B38: Sécheresse | C38: 856 | D38: =IF(ISNA(VLOOKUP(C38,BDDG!$C$2:$H$47,2,FALSE)),"",VLOOKUP(C38,BDDG!$C$2:$H$47,2,FALSE)) -> 0 | E38: =IF(ISNA(VLOOKUP(C38,BDDG!$C$3:$P$49,3,FALSE)),"",VLOOKUP(C38,BDDG!$C$3:$P$49,3,FALSE)) -> pates | F38: =IF(ISNA(VLOOKUP(C38,BDDG!$C$3:$P$49,4,FALSE)),"",VLOOKUP(C38,BDDG!$C$3:$P$49,4,FALSE)) -> 106 | G38: =IF(ISNA(VLOOKUP(C38,BDDG!$C$2:$H$47,5,FALSE)),"",VLOOKUP(C38,BDDG!$C$2:$H$47,5,FALSE)) -> noisettes | H38: =IF(ISNA(VLOOKUP(C38,BDDG!$C$2:$H$47,6,FALSE)),"",VLOOKUP(C38,BDDG!$C$2:$H$47,6,FALSE)) -> iris | I38: =IF(ISERROR(VLOOKUP(C38,BDDG!$C$2:$I$47,7,FALSE)),"",VLOOKUP(C38,BDDG!$C$2:$I$47,7,FALSE)) -> 2 | J38: =IF(ISERROR(VLOOKUP(C38,BDDG!$C$2:$W$6,8,FALSE)),"",VLOOKUP(C38,BDDG!$C$2:$W$6,8,FALSE)) -> iris1 | K38: 5 | L38: 45.47 | M38: =IF(ISERROR(K38/L38*86.4),"xxxxxxxxxx",K38/L38*86.4) -> 9.500769738 | N38: =IF(ISERROR(VLOOKUP(C38,BDDG!$C$2:$W$6,11,FALSE)),"",VLOOKUP(C38,BDDG!$C$2:$W$6,11,FALSE)) -> iris2 | O38: 12 | P38: 8.25 | Q38: =IF(ISERROR(O38/P38*86.4),"xxxxxxxxxx",O38/P38*86.4) -> 125.6727273 | R38: =IF(ISERROR(VLOOKUP(C38,BDDG!$C$2:$W$6,14,FALSE)),"",VLOOKUP(C38,BDDG!$C$2:$W$6,14,FALSE)) -> xxxxxxxxxxxxxxxxxxxxxxxxxxxxxxxxxxxx | S38: xxxxxxxxxx | T38: =IF(ISERROR(R38/S38*86.4),"xxxxxxxxxx",R38/S38*86.4) -> xxxxxxxxxx | U38: =IF(ISERROR(S38/T38*86.4),"xxxxxxxxxx",S38/T38*86.4) -> xxxxxxxxxx | V38: =IF(ISERROR(VLOOKUP(C38,BDDG!$C$2:$W$6,17,FALSE)),"",VLOOKUP(C38,BDDG!$C$2:$W$6,17,FALSE)) -> xxxxxxxxxxxxxxxxxxxxxxxx | W38: xxxxxxxxxx | X38: =IF(ISERROR(V38/W38*86.4),"xxxxxxxxxx",V38/W38*86.4) -> xxxxxxxxxx | Y38: =IF(ISERROR(W38/X38*86.4),"xxxxxxxxxx",W38/X38*86.4) -> xxxxxxxxxx | Z38: =IF(ISERROR(VLOOKUP(C38,BDDG!$C$2:$W$6,20,FALSE)),"",VLOOKUP(C38,BDDG!$C$2:$W$6,20,FALSE)) -> xxxxxxxxxx | AA38: =IF(ISERROR(SUM(M38,Q38,U38)),"",SUM(M38,Q38,U38)) -> 135.173497 | AB38: =MONTH(A:A) -> 8 | AC38: =YEAR(A:A) -> 2016 | AD38: =IFERROR((INDEX($AA$2:AA38,MATCH(H38&MAX(IF($H$1:H37=H38,$A$1:A37)),$H$2:H38&$A$2:A38,0))-AA38)*-1,"") -> -34.60894632 | AE38: =IF(ISERROR(VLOOKUP(C38,BDDG!$C$2:$W$6,21,FALSE)),"",VLOOKUP(C38,BDDG!$C$2:$W$6,21,FALSE)) -> 0
A39: 2016-11-15 | B39: Froid | C39: 823 | D39: =IF(ISNA(VLOOKUP(C39,BDDG!$C$2:$H$47,2,FALSE)),"",VLOOKUP(C39,BDDG!$C$2:$H$47,2,FALSE)) -> 0 | E39: =IF(ISNA(VLOOKUP(C39,BDDG!$C$3:$P$49,3,FALSE)),"",VLOOKUP(C39,BDDG!$C$3:$P$49,3,FALSE)) -> frites | F39: =IF(ISNA(VLOOKUP(C39,BDDG!$C$3:$P$49,4,FALSE)),"",VLOOKUP(C39,BDDG!$C$3:$P$49,4,FALSE)) -> 104 | G39: =IF(ISNA(VLOOKUP(C39,BDDG!$C$2:$H$47,5,FALSE)),"",VLOOKUP(C39,BDDG!$C$2:$H$47,5,FALSE)) -> noix | H39: =IF(ISNA(VLOOKUP(C39,BDDG!$C$2:$H$47,6,FALSE)),"",VLOOKUP(C39,BDDG!$C$2:$H$47,6,FALSE)) -> rose | I39: =IF(ISERROR(VLOOKUP(C39,BDDG!$C$2:$I$47,7,FALSE)),"",VLOOKUP(C39,BDDG!$C$2:$I$47,7,FALSE)) -> 1 | J39: =IF(ISERROR(VLOOKUP(C39,BDDG!$C$2:$W$6,8,FALSE)),"",VLOOKUP(C39,BDDG!$C$2:$W$6,8,FALSE)) -> rose1 | K39: 5 | L39: 26.96 | M39: =IF(ISERROR(K39/L39*86.4),"xxxxxxxxxx",K39/L39*86.4) -> 16.02373887 | N39: =IF(ISERROR(VLOOKUP(C39,BDDG!$C$2:$W$6,11,FALSE)),"",VLOOKUP(C39,BDDG!$C$2:$W$6,11,FALSE)) -> xxxxxxxxxxxxxxxxxxxxxxxxxxxxxxxxxxxxxxxxxxxxxxx | O39: xxxxxxxxx | P39: xxxxxxxxx | Q39: =IF(ISERROR(O39/P39*86.4),"xxxxxxxxxx",O39/P39*86.4) -> xxxxxxxxxx | R39: =IF(ISERROR(VLOOKUP(C39,BDDG!$C$2:$W$6,14,FALSE)),"",VLOOKUP(C39,BDDG!$C$2:$W$6,14,FALSE)) -> xxxxxxxxxxxxxxxxxxxxxxxxxxxxxxxxxxxx | S39: xxxxxxxxx | T39: xxxxxxxxx | U39: =IF(ISERROR(S39/T39*86.4),"xxxxxxxxxx",S39/T39*86.4) -> xxxxxxxxxx | V39: =IF(ISERROR(VLOOKUP(C39,BDDG!$C$2:$W$6,17,FALSE)),"",VLOOKUP(C39,BDDG!$C$2:$W$6,17,FALSE)) -> xxxxxxxxxxxxxxxxxxxxxxxx | W39: xxxxxxxxx | X39: xxxxxxxxx | Y39: =IF(ISERROR(W39/X39*86.4),"xxxxxxxxxx",W39/X39*86.4) -> xxxxxxxxxx | Z39: =IF(ISERROR(VLOOKUP(C39,BDDG!$C$2:$W$6,20,FALSE)),"",VLOOKUP(C39,BDDG!$C$2:$W$6,20,FALSE)) -> 3 | AA39: =IF(ISERROR(SUM(M39,Q39,U39,Y32)),"",SUM(M39,Q39,U39,Y32)) -> 16.02373887 | AB39: =MONTH(A:A) -> 11 | AC39: =YEAR(A:A) -> 2016 | AD39: =IFERROR((INDEX($AA$2:AA40,MATCH(H39&MAX(IF($H$1:H38=H39,$A$1:A38)),$H$2:H40&$A$2:A40,0))-AA39)*-1,"") -> -5.576261128
A40: 2016-11-24 | B40: froid | C40: 823 | D40: =IF(ISNA(VLOOKUP(C40,BDDG!$C$2:$H$47,2,FALSE)),"",VLOOKUP(C40,BDDG!$C$2:$H$47,2,FALSE)) -> 0 | E40: =IF(ISNA(VLOOKUP(C40,BDDG!$C$3:$P$49,3,FALSE)),"",VLOOKUP(C40,BDDG!$C$3:$P$49,3,FALSE)) -> frites | F40: =IF(ISNA(VLOOKUP(C40,BDDG!$C$3:$P$49,4,FALSE)),"",VLOOKUP(C40,BDDG!$C$3:$P$49,4,FALSE)) -> 104 | G40: =IF(ISNA(VLOOKUP(C40,BDDG!$C$2:$H$47,5,FALSE)),"",VLOOKUP(C40,BDDG!$C$2:$H$47,5,FALSE)) -> noix | H40: =IF(ISNA(VLOOKUP(C40,BDDG!$C$2:$H$47,6,FALSE)),"",VLOOKUP(C40,BDDG!$C$2:$H$47,6,FALSE)) -> rose | I40: =IF(ISERROR(VLOOKUP(C40,BDDG!$C$2:$I$47,7,FALSE)),"",VLOOKUP(C40,BDDG!$C$2:$I$47,7,FALSE)) -> 1 | J40: =IF(ISERROR(VLOOKUP(C40,BDDG!$C$2:$W$6,8,FALSE)),"",VLOOKUP(C40,BDDG!$C$2:$W$6,8,FALSE)) -> rose1 | M40: =IF(ISERROR(K40/L40*86.4),"xxxxxxxxxx",K40/L40*86.4) -> xxxxxxxxxx | N40: =IF(ISERROR(VLOOKUP(C40,BDDG!$C$2:$W$6,11,FALSE)),"",VLOOKUP(C40,BDDG!$C$2:$W$6,11,FALSE)) -> xxxxxxxxxxxxxxxxxxxxxxxxxxxxxxxxxxxxxxxxxxxxxxx | O40: xxxxxxxxx | P40: xxxxxxxxx | Q40: =IF(ISERROR(O40/P40*86.4),"xxxxxxxxxx",O40/P40*86.4) -> xxxxxxxxxx | R40: =IF(ISERROR(VLOOKUP(C40,BDDG!$C$2:$W$6,14,FALSE)),"",VLOOKUP(C40,BDDG!$C$2:$W$6,14,FALSE)) -> xxxxxxxxxxxxxxxxxxxxxxxxxxxxxxxxxxxx | S40: xxxxxxxxx | T40: xxxxxxxxx | U40: =IF(ISERROR(S40/T40*86.4),"xxxxxxxxxx",S40/T40*86.4) -> xxxxxxxxxx | V40: =IF(ISERROR(VLOOKUP(C40,BDDG!$C$2:$W$6,17,FALSE)),"",VLOOKUP(C40,BDDG!$C$2:$W$6,17,FALSE)) -> xxxxxxxxxxxxxxxxxxxxxxxx | W40: xxxxxxxxx | X40: xxxxxxxxx | Y40: =IF(ISERROR(W40/X40*86.4),"xxxxxxxxxx",W40/X40*86.4) -> xxxxxxxxxx | Z40: =IF(ISERROR(VLOOKUP(C40,BDDG!$C$2:$W$6,20,FALSE)),"",VLOOKUP(C40,BDDG!$C$2:$W$6,20,FALSE)) -> 3 | AB40: =MONTH(A:A) -> 11 | AC40: =YEAR(A:A) -> 2016 | AD40: =IFERROR((INDEX($AA$2:AA40,MATCH(H40&MAX(IF($H$1:H39=H40,$A$1:A39)),$H$2:H40&$A$2:A40,0))-AA40)*-1,"") -> -16.02373887

Sheet BDDG
C1: 1 | D1: 2 | E1: 3 | F1: 4 | G1: 5 | H1: 6 | I1: 7 | J1: 8 | K1: 9 | L1: 10 | M1: 11 | N1: 12 | O1: 13 | P1: 14 | Q1: 15 | R1: 16 | S1: 17 | T1: 18 | U1: 19 | V1: 20 | W1: 21
A2: Date | B2: Météo | C2: Code | D2: peche | E2: pomme | F2: prune | G2: citron | H2: poire | I2: kiwi | J2: truc1 | K2: Vol 1 | L2: Temps 1 | M2: truc2 | N2: Vol 2 | O2: Temps 2 | P2: truc3 | Q2: Vol 3 | R2: Temps 3 | S2: truc4 | T2: Vol 4 | U2: Temps 4 | V2: Seuil alerte | W2: Observation(s)
C3: 823 | D3: 0 | E3: frites | F3: 104 | G3: noix | H3: rose | I3: 1 | J3: rose1 | M3: xxxxxxxxxxxxxxxxxxxxxxxxxxxxxxxxxxxxxxxxxxxxxxx | N3: xxxxxxxxx | O3: xxxxxxxxx | P3: xxxxxxxxxxxxxxxxxxxxxxxxxxxxxxxxxxxx | Q3: xxxxxxxxx | R3: xxxxxxxxx | S3: xxxxxxxxxxxxxxxxxxxxxxxx | T3: xxxxxxxxx | U3: xxxxxxxxx | V3: 3
C4: 856 | D4: 0 | E4: pates | F4: 106 | G4: noisettes | H4: iris | I4: 2 | J4: iris1 | M4: iris2 | P4: xxxxxxxxxxxxxxxxxxxxxxxxxxxxxxxxxxxx | Q4: xxxxxxxxx | R4: xxxxxxxxx | S4: xxxxxxxxxxxxxxxxxxxxxxxx | T4: xxxxxxxxx | U4: xxxxxxxxx | V4: xxxxxxxxxx
C1611: 2015-12-31 | D1611: Couvert | E1611: 823 | W1611: 11 | X1611: 70.4

Sheet Base
A1: 1 | B1: 2 | C1: 3 | D1: 4 | E1: 5 | F1: 6 | G1: 7 | H1: 8 | I1: 9
A2: Code | B2: Vol 1 | C2: Temps 1 | D2: Vol 2 | E2: Temps 2 | F2: Vol 3 | G2: Temps 3 | H2: Vol 4 | I2: Temps 4
A3: 801 | F3: xxxxxxxxxx | G3: xxxxxxxxxx | H3: xxxxxxxxxx | I3: xxxxxxxxxx
A4: 804 | D4: xxxxxxxxxx | E4: xxxxxxxxxx | F4: xxxxxxxxxx | G4: xxxxxxxxxx | H4: xxxxxxxxxx | I4: xxxxxxxxxx
A5: 805 | D5: xxxxxxxxxx | E5: xxxxxxxxxx | F5: xxxxxxxxxx | G5: xxxxxxxxxx | H5: xxxxxxxxxx | I5: xxxxxxxxxx
A6: 806 | D6: xxxxxxxxxx | E6: xxxxxxxxxx | F6: xxxxxxxxxx | G6: xxxxxxxxxx | H6: xxxxxxxxxx | I6: xxxxxxxxxx
A7: 5000 | F7: xxxxxxxxxx | G7: xxxxxxxxxx | H7: xxxxxxxxxx | I7: xxxxxxxxxx
A8: 807 | D8: xxxxxxxxxx | E8: xxxxxxxxxx | F8: xxxxxxxxxx | G8: xxxxxxxxxx | H8: xxxxxxxxxx | I8: xxxxxxxxxx
A9: 808 | D9: xxxxxxxxxx | E9: xxxxxxxxxx | F9: xxxxxxxxxx | G9: xxxxxxxxxx | H9: xxxxxxxxxx | I9: xxxxxxxxxx
A10: 6000 | F10: xxxxxxxxxx | G10: xxxxxxxxxx | H10: xxxxxxxxxx | I10: xxxxxxxxxx
A11: 809 | B11: xxxxxxxxxx | C11: xxxxxxxxxx | F11: xxxxxxxxxx | G11: xxxxxxxxxx | H11: xxxxxxxxxx | I11: xxxxxxxxxx
A12: 810 | B12: xxxxxxxxxx | C12: xxxxxxxxxx | F12: xxxxxxxxxx | G12: xxxxxxxxxx | H12: xxxxxxxxxx | I12: xxxxxxxxxx
A13: 4000 | F13: xxxxxxxxxx | G13: xxxxxxxxxx | H13: xxxxxxxxxx | I13: xxxxxxxxxx
A14: 811 | D14: xxxxxxxxxx | E14: xxxxxxxxxx | F14: xxxxxxxxxx | G14: xxxxxxxxxx | H14: xxxxxxxxxx | I14: xxxxxxxxxx
A15: 812 | D15: xxxxxxxxxx | E15: xxxxxxxxxx | F15: xxxxxxxxxx | G15: xxxxxxxxxx | H15: xxxxxxxxxx | I15: xxxxxxxxxx
A16: 813 | D16: xxxxxxxxxx | E16: xxxxxxxxxx | F16: xxxxxxxxxx | G16: xxxxxxxxxx | H16: xxxxxxxxxx | I16: xxxxxxxxxx
A17: 814 | B17: xxxxxxxxxx | C17: xxxxxxxxxx | D17: xxxxxxxxxx | E17: xxxxxxxxxx | F17: xxxxxxxxxx | G17: xxxxxxxxxx | H17: xxxxxxxxxx | I17: xxxxxxxxxx
A18: 816 | H18: xxxxxxxxxx | I18: xxxxxxxxxx
A19: 817 | B19: xxxxxxxxxx | C19: xxxxxxxxxx | F19: xxxxxxxxxx | G19: xxxxxxxxxx | H19: xxxxxxxxxx | I19: xxxxxxxxxx
A20: 1000 | F20: xxxxxxxxxx | G20: xxxxxxxxxx | H20: xxxxxxxxxx | I20: xxxxxxxxxx
A21: 818 | D21: xxxxxxxxxx | E21: xxxxxxxxxx | F21: xxxxxxxxxx | G21: xxxxxxxxxx | H21: xxxxxxxxxx | I21: xxxxxxxxxx
A22: 819 | B22: xxxxxxxxxx | C22: xxxxxxxxxx | D22: xxxxxxxxxx | E22: xxxxxxxxxx | F22: xxxxxxxxxx | G22: xxxxxxxxxx | H22: xxxxxxxxxx | I22: xxxxxxxxxx
A23: 820 | D23: xxxxxxxxxx | E23: xxxxxxxxxx | F23: xxxxxxxxxx | G23: xxxxxxxxxx | H23: xxxxxxxxxx | I23: xxxxxxxxxx
A24: 821 | F24: xxxxxxxxxx | G24: xxxxxxxxxx | H24: xxxxxxxxxx | I24: xxxxxxxxxx
A25: 881 | D25: xxxxxxxxxx | E25: xxxxxxxxxx | F25: xxxxxxxxxx | G25: xxxxxxxxxx | H25: xxxxxxxxxx | I25: xxxxxxxxxx
A26: 823 | D26: xxxxxxxxxx | E26: xxxxxxxxxx | F26: xxxxxxxxxx | G26: xxxxxxxxxx | H26: xxxxxxxxxx | I26: xxxxxxxxxx
A27: 824 | D27: xxxxxxxxxx | E27: xxxxxxxxxx | F27: xxxxxxxxxx | G27: xxxxxxxxxx | H27: xxxxxxxxxx | I27: xxxxxxxxxx
A28: 825 | F28: xxxxxxxxxx | G28: xxxxxxxxxx | H28: xxxxxxxxxx | I28: xxxxxxxxxx
A29: 826 | D29: xxxxxxxxxx | E29: xxxxxxxxxx | F29: xxxxxxxxxx | G29: xxxxxxxxxx | H29: xxxxxxxxxx | I29: xxxxxxxxxx
A30: 828 | D30: xxxxxxxxxx | E30: xxxxxxxxxx | F30: xxxxxxxxxx | G30: xxxxxxxxxx | H30: xxxxxxxxxx | I30: xxxxxxxxxx
A31: 829 | D31: xxxxxxxxxx | E31: xxxxxxxxxx | F31: xxxxxxxxxx | G31: xxxxxxxxxx | H31: xxxxxxxxxx | I31: xxxxxxxxxx
A32: 831 | D32: xxxxxxxxxx | E32: xxxxxxxxxx | F32: xxxxxxxxxx | G32: xxxxxxxxxx | H32: xxxxxxxxxx | I32: xxxxxxxxxx
A33: 832 | D33: xxxxxxxxxx | E33: xxxxxxxxxx | F33: xxxxxxxxxx | G33: xxxxxxxxxx | H33: xxxxxxxxxx | I33: xxxxxxxxxx
A34: 833 | D34: xxxxxxxxxx | E34: xxxxxxxxxx | F34: xxxxxxxxxx | G34: xxxxxxxxxx | H34: xxxxxxxxxx | I34: xxxxxxxxxx
A35: 834 | D35: xxxxxxxxxx | E35: xxxxxxxxxx | F35: xxxxxxxxxx | G35: xxxxxxxxxx | H35: xxxxxxxxxx | I35: xxxxxxxxxx
A36: 2000 | H36: xxxxxxxxxx | I36: xxxxxxxxxx
A37: 835 | D37: xxxxxxxxxx | E37: xxxxxxxxxx | F37: xxxxxxxxxx | G37: xxxxxxxxxx | H37: xxxxxxxxxx | I37: xxxxxxxxxx
A38: 836 | D38: xxxxxxxxxx | E38: xxxxxxxxxx | F38: xxxxxxxxxx | G38: xxxxxxxxxx | H38: xxxxxxxxxx | I38: xxxxxxxxxx
A39: 837 | D39: xxxxxxxxxx | E39: xxxxxxxxxx | F39: xxxxxxxxxx | G39: xxxxxxxxxx | H39: xxxxxxxxxx | I39: xxxxxxxxxx
A40: 838 | D40: xxxxxxxxxx | E40: xxxxxxxxxx | F40: xxxxxxxxxx | G40: xxxxxxxxxx | H40: xxxxxxxxxx | I40: xxxxxxxxxx
A41: 840 | B41: xxxxxxxxxx | C41: xxxxxxxxxx | D41: xxxxxxxxxx | E41: xxxxxxxxxx | F41: xxxxxxxxxx | G41: xxxxxxxxxx | H41: xxxxxxxxxx | I41: xxxxxxxxxx
A42: 839 | F42: xxxxxxxxxx | G42: xxxxxxxxxx | H42: xxxxxxxxxx | I42: xxxxxxxxxx
A43: 841 | B43: xxxxxxxxxx | C43: xxxxxxxxxx | F43: xxxxxxxxxx | G43: xxxxxxxxxx | H43: xxxxxxxxxx | I43: xxxxxxxxxx
A44: 822 | D44: xxxxxxxxxx | E44: xxxxxxxxxx | F44: xxxxxxxxxx | G44: xxxxxxxxxx | H44: xxxxxxxxxx | I44: xxxxxxxxxx
A45: 9000 | F45: xxxxxxxxxx | G45: xxxxxxxxxx | H45: xxxxxxxxxx | I45: xxxxxxxxxx
A46: 842 | D46: xxxxxxxxxx | E46: xxxxxxxxxx | F46: xxxxxxxxxx | G46: xxxxxxxxxx | H46: xxxxxxxxxx | I46: xxxxxxxxxx
A47: 844 | B47: xxxxxxxxxx | C47: xxxxxxxxxx | F47: xxxxxxxxxx | G47: xxxxxxxxxx | H47: xxxxxxxxxx | I47: xxxxxxxxxx
A48: 845 | D48: xxxxxxxxxx | E48: xxxxxxxxxx | F48: xxxxxxxxxx | G48: xxxxxxxxxx | H48: xxxxxxxxxx | I48: xxxxxxxxxx
A49: 846 | D49: xxxxxxxxxx | E49: xxxxxxxxxx | F49: xxxxxxxxxx | G49: xxxxxxxxxx | H49: xxxxxxxxxx | I49: xxxxxxxxxx
A50: 847 | F50: xxxxxxxxxx | G50: xxxxxxxxxx | H50: xxxxxxxxxx | I50: xxxxxxxxxx
A51: 848 | F51: xxxxxxxxxx | G51: xxxxxxxxxx | H51: xxxxxxxxxx | I51: xxxxxxxxxx
A52: 849 | F52: xxxxxxxxxx | G52: xxxxxxxxxx | H52: xxxxxxxxxx | I52: xxxxxxxxxx
A53: 850 | D53: xxxxxxxxxx | E53: xxxxxxxxxx | F53: xxxxxxxxxx | G53: xxxxxxxxxx | H53: xxxxxxxxxx | I53: xxxxxxxxxx
A54: 851 | F54: xxxxxxxxxx | G54: xxxxxxxxxx | H54: xxxxxxxxxx | I54: xxxxxxxxxx
A55: 852 | D55: xxxxxxxxxx | E55: xxxxxxxxxx | F55: xxxxxxxxxx | G55: xxxxxxxxxx | H55: xxxxxxxxxx | I55: xxxxxxxxxx
A56: 853 | F56: xxxxxxxxxx | G56: xxxxxxxxxx | H56: xxxxxxxxxx | I56: xxxxxxxxxx
A57: 855 | F57: xxxxxxxxxx | G57: xxxxxxxxxx | H57: xxxxxxxxxx | I57: xxxxxxxxxx
A58: 854 | D58: xxxxxxxxxx | E58: xxxxxxxxxx | F58: xxxxxxxxxx | G58: xxxxxxxxxx | H58: xxxxxxxxxx | I58: xxxxxxxxxx
A59: 856 | F59: xxxxxxxxxx | G59: xxxxxxxxxx | H59: xxxxxxxxxx | I59: xxxxxxxxxx
A60: 7000 | F60: xxxxxxxxxx | G60: xxxxxxxxxx | H60: xxxxxxxxxx | I60: xxxxxxxxxx
A61: 857 | B61: xxxxxxxxxx | C61: xxxxxxxxxx | D61: xxxxxxxxxx | E61: xxxxxxxxxx | F61: xxxxxxxxxx | G61: xxxxxxxxxx | H61: xxxxxxxxxx | I61: xxxxxxxxxx
A62: 858 | B62: xxxxxxxxxx | C62: xxxxxxxxxx | D62: xxxxxxxxxx | E62: xxxxxxxxxx | F62: xxxxxxxxxx | G62: xxxxxxxxxx | H62: xxxxxxxxxx | I62: xxxxxxxxxx
A63: 859 | D63: xxxxxxxxxx | E63: xxxxxxxxxx | F63: xxxxxxxxxx | G63: xxxxxxxxxx | H63: xxxxxxxxxx | I63: xxxxxxxxxx
A64: 815 | F64: xxxxxxxxxx | G64: xxxxxxxxxx | H64: xxxxxxxxxx | I64: xxxxxxxxxx
A65: 860 | F65: xxxxxxxxxx | G65: xxxxxxxxxx | H65: xxxxxxxxxx | I65: xxxxxxxxxx
A66: 861 | B66: xxxxxxxxxx | C66: xxxxxxxxxx | F66: xxxxxxxxxx | G66: xxxxxxxxxx | H66: xxxxxxxxxx | I66: xxxxxxxxxx
A67: 3000 | F67: xxxxxxxxxx | G67: xxxxxxxxxx | H67: xxxxxxxxxx | I67: xxxxxxxxxx
A68: 862 | D68: xxxxxxxxxx | E68: xxxxxxxxxx | F68: xxxxxxxxxx | G68: xxxxxxxxxx | H68: xxxxxxxxxx | I68: xxxxxxxxxx
A69: 863 | D69: xxxxxxxxxx | E69: xxxxxxxxxx | F69: xxxxxxxxxx | G69: xxxxxxxxxx | H69: xxxxxxxxxx | I69: xxxxxxxxxx
A70: 864 | D70: xxxxxxxxxx | E70: xxxxxxxxxx | F70: xxxxxxxxxx | G70: xxxxxxxxxx | H70: xxxxxxxxxx | I70: xxxxxxxxxx
A71: 865 | D71: xxxxxxxxxx | E71: xxxxxxxxxx | F71: xxxxxxxxxx | G71: xxxxxxxxxx | H71: xxxxxxxxxx | I71: xxxxxxxxxx
A72: 868 | F72: xxxxxxxxxx | G72: xxxxxxxxxx | H72: xxxxxxxxxx | I72: xxxxxxxxxx
A73: 869 | B73: xxxxxxxxxx | C73: xxxxxxxxxx | D73: xxxxxxxxxx | E73: xxxxxxxxxx | F73: xxxxxxxxxx | G73: xxxxxxxxxx | H73: xxxxxxxxxx | I73: xxxxxxxxxx
A74: 870 | F74: xxxxxxxxxx | G74: xxxxxxxxxx | H74: xxxxxxxxxx | I74: xxxxxxxxxx
A75: 866 | D75: xxxxxxxxxx | E75: xxxxxxxxxx | F75: xxxxxxxxxx | G75: xxxxxxxxxx | H75: xxxxxxxxxx | I75: xxxxxxxxxx
A76: 867 | D76: xxxxxxxxxx | E76: xxxxxxxxxx | F76: xxxxxxxxxx | G76: xxxxxxxxxx | H76: xxxxxxxxxx | I76: xxxxxxxxxx
A77: 871 | D77: xxxxxxxxxx | E77: xxxxxxxxxx | F77: xxxxxxxxxx | G77: xxxxxxxxxx | H77: xxxxxxxxxx | I77: xxxxxxxxxx
A78: 872 | H78: xxxxxxxxxx | I78: xxxxxxxxxx
A79: 873 | D79: xxxxxxxxxx | E79: xxxxxxxxxx | F79: xxxxxxxxxx | G79: xxxxxxxxxx | H79: xxxxxxxxxx | I79: xxxxxxxxxx
A80: 874 | D80: xxxxxxxxxx | E80: xxxxxxxxxx | F80: xxxxxxxxxx | G80: xxxxxxxxxx | H80: xxxxxxxxxx | I80: xxxxxxxxxx
A81: 875 | D81: xxxxxxxxxx | E81: xxxxxxxxxx | F81: xxxxxxxxxx | G81: xxxxxxxxxx | H81: xxxxxxxxxx | I81: xxxxxxxxxx
A82: 876 | F82: xxxxxxxxxx | G82: xxxxxxxxxx | H82: xxxxxxxxxx | I82: xxxxxxxxxx
A83: 877 | F83: xxxxxxxxxx | G83: xxxxxxxxxx | H83: xxxxxxxxxx | I83: xxxxxxxxxx
A84: 882 | D84: xxxxxxxxxx | E84: xxxxxxxxxx | F84: xxxxxxxxxx | G84: xxxxxxxxxx | H84: xxxxxxxxxx | I84: xxxxxxxxxx
A85: 878 | D85: xxxxxxxxxx | E85: xxxxxxxxxx | F85: xxxxxxxxxx | G85: xxxxxxxxxx | H85: xxxxxxxxxx | I85: xxxxxxxxxx
A86: 879
A87: 880 | F87: xxxxxxxxxx | G87: xxxxxxxxxx | H87: xxxxxxxxxx | I87: xxxxxxxxxx
